Workbook

Sheet 必修课
A1: 化学工程与环境学院 2016级环境科学前三年学期必修课成绩
A2: 学号 | B2: 姓名 | C2: 课程号 | D2: 学分 | E2: 课程号 | F2: 学分 | G2: 课程号 | H2: 学分 | I2: 课程号 | J2: 学分 | K2: 课程号 | L2: 学分 | M2: 课程号 | N2: 学分 | O2: 课程号 | P2: 学分 | Q2: 课程号 | R2: 学分 | S2: 课程号 | T2: 学分 | U2: 课程号 | V2: 学分 | W2: 课程号 | X2: 学分 | Y2: 课程号 | Z2: 学分 | AA2: 课程号 | AB2: 学分 | AC2: 课程号 | AD2: 学分 | AE2: 课程号 | AF2: 学分 | AG2: 课程号 | AH2: 学分 | AI2: 课程号 | AJ2: 学分 | AK2: 课程号 | AL2: 学分 | AM2: 课程号 | AN2: 学分 | AO2: 课程号 | AP2: 学分 | AQ2: 课程号 | AR2: 学分 | AS2: 课程号 | AT2: 学分 | AU2: 课程号 | AV2: 学分 | AW2: 课程号 | AX2: 学分 | AY2: 课程号 | AZ2: 学分 | BA2: 课程号 | BB2: 学分 | BC2: 课程号 | BD2: 学分 | BE2: 课程号 | BF2: 学分 | BG2: 课程号 | BH2: 学分 | BI2: 课程号 | BJ2: 学分 | BK2: 课程号 | BL2: 学分 | BM2: 课程号 | BN2: 学分 | BO2: 课程号 | BP2: 学分 | BQ2: 课程号 | BR2: 学分 | BS2: 课程号 | BT2: 学分 | BU2: 课程号 | BV2: 学分 | BW2: 课程号 | BX2: 学分 | BY2: 课程号 | BZ2: 学分 | CA2: 课程号 | CB2: 学分 | CC2: 课程号 | CD2: 学分 | CE2: 课程号 | CF2: 学分 | CG2: 课程号 | CH2: 学分 | CI2: 课程号 | CJ2: 学分 | CK2: 课程号 | CL2: 学分 | CM2: 课程号 | CN2: 学分 | CO2: 课程号 | CP2: 学分 | CQ2: 课程号 | CR2: 学分 | CS2: 课程号 | CT2: 学分 | CU2: 课程号 | CV2: 学分 | CW2: 成绩*学分 | CX2: 总学分 | CY2: 加权成绩 | CZ2: 挂科数
C3: 高等数学B1 | D3: 6 | E3: C语言程序设计 | F3: 4 | G3: 中国近现代史纲要 | H3: 2 | I3: 思想道德修养和法律基础 | J3: 2 | K3: 大学体育1 | L3: 1 | M3: 大学英语1 | O3: 马克思主义基本原理概论 | P3: 2 | Q3: 大学物理C1 | R3: 3 | S3: 高等数学B2 | T3: 5 | U3: 大学体育2 | V3: 1 | W3: 大学英语2 | X3: 4 | Y3: 大学物理C2 | Z3: 3 | AA3: 毛概1 | AB3: 2 | AC3: 大物实验B1 | AD3: 2 | AE3: 大学英语3 | AF3: 2 | AG3: 大学体育3 | AH3: 1 | AI3: 线性代数 | AJ3: 3 | AK3: 大物实验B2 | AL3: 1.5 | AM3: 大学英语4 | AN3: 2 | AO3: 概率论与数理统计 | AP3: 3.5 | AQ3: 大学体育4 | AR3: 1 | AS3: 毛概2 | AT3: 2 | AU3: 无机化学与分析化学 | AV3: 4.5 | AW3: 地球科学概论 | AX3: 4 | AY3: 环境学基础 | AZ3: 4 | BA3: 无机与分析化学实验1 | BB3: 2.5 | BC3: 物理化学 | BD3: 4 | BE3: 无机与分析化学实验2 | BF3: 1 | BG3: 普通生态学 | BH3: 2 | BI3: 物理化学实验1 | BJ3: 1 | BK3: 有机化学 | BL3: 4 | BM3: 有机化学实验 | BN3: 2 | BO3: 现代仪器分析 | BP3: 3 | BQ3: 环境生物学 | BR3: 3 | BS3: 环境监测实验 | BT3: 2.5 | BU3: 环境监测 | BV3: 2 | BW3: 环境化学 | BX3: 3.5 | BY3: 环境管理学 | BZ3: 3 | CA3: 环境科学认识实习 | CB3: 3 | CC3: 普通生态学大作业 | CD3: 1 | CE3: 生态学实习 | CF3: 3 | CG3: 入学教育与安全教育 | CH3: 1 | CI3: 军事训练1 | CJ3: 2 | CK3: 环境经济学 | CL3: 3 | CM3: 环境法学 | CN3: 2 | CO3: 环境地球化学概论 | CP3: 3 | CQ3: 环境评价 | CR3: 3 | CS3: 环境质量评价大作业 | CT3: 2 | CU3: 就业指导 | CV3: 1
A4: 2016010130 | B4: 段练 | C4: 93.0 | D4: 6 | E4: 94.0 | F4: 4 | G4: 85.0 | H4: 2 | I4: 88.0 | J4: 2 | K4: 82.0 | L4: 1 | M4: 86.0 | N4: 4 | O4: 77.0 | P4: 2 | Q4: 93.0 | R4: 3 | S4: 93.0 | T4: 5 | U4: 89.0 | V4: 1 | W4: 89.0 | X4: 4 | Y4: 86.0 | Z4: 3 | AA4: 88.0 | AB4: 2 | AC4: 81.0 | AD4: 2 | AE4: 87.0 | AF4: 2 | AG4: 90.0 | AH4: 1 | AI4: 90.0 | AJ4: 3 | AK4: 85.9 | AL4: 1.5 | AM4: 82.0 | AN4: 2 | AO4: 80.0 | AP4: 3.5 | AQ4: 85.0 | AR4: 1 | AS4: 90.0 | AT4: 2 | AU4: 97.0 | AV4: 4.5 | AW4: 83.0 | AX4: 4 | AY4: 84.0 | AZ4: 4 | BA4: 90.0 | BB4: 2.5 | BC4: 83.0 | BD4: 4 | BE4: 92.0 | BF4: 1 | BG4: 92 | BH4: 2 | BI4: 87.0 | BJ4: 1 | BK4: 75.0 | BL4: 4 | BM4: 87.0 | BN4: 2 | BO4: 95.0 | BP4: 3 | BQ4: 91.0 | BR4: 3 | BS4: 85.0 | BT4: 2.5 | BU4: 82.0 | BV4: 2 | BW4: 93.0 | BX4: 3.5 | BY4: 88.0 | BZ4: 3 | CA4: 93.0 | CB4: 3 | CC4: 92.0 | CD4: 1 | CE4: 96.0 | CF4: 3 | CG4: 89.0 | CH4: 1 | CI4: 94.0 | CJ4: 2 | CK4: 84.0 | CL4: 3 | CM4: 92.0 | CN4: 2 | CO4: 93.0 | CP4: 3 | CQ4: 89.0 | CR4: 3 | CS4: 92 | CT4: 2 | CU4: 88.0 | CV4: 1 | CW4: =C4*D4+E4*F4+G4*H4+I4*J4+K4*L4+M4*N4+O4*P4+Q4*R4+S4*T4+U4*V4+W4*X4+Y4*Z4+AA4*AB4+AC4*AD4+AE4*AF4+AG4*AH4+AI4*AJ4+AK4*AL4+AM4*AN4+AO4*AP4+AQ4*AR4+AS4*AT4+AU4*AV4+AW4*AX4+AY4*AZ4+BA4*BB4+BC4*BD4+BE4*BF4+BG4*BH4+BI4*BJ4+BK4*BL4+BM4*BN4+BO4*BP4+BQ4*BR4+BS4*BT4+BU4*BV4+BW4*BX4+BY4*BZ4+CA4*CB4+CC4*CD4+CE4*CF4+CG4*CH4+CI4*CJ4+CK4*CL4+CM4*CN4+CO4*CP4+CQ4*CR4+CS4*CT4+CU4*CV4 -> 11229.35 | CX4: =D4+F4+H4+J4+L4+N4+P4+R4+T4+V4+X4+Z4+AB4+AD4+AF4+AH4+AJ4+AL4+AN4+AP4+AR4+AT4+AV4+AX4+AZ4+BB4+BD4+BF4+BH4+BJ4+BL4+BN4+BP4+BR4+BT4+BV4+BX4+BZ4+CB4+CD4+CF4+CH4+CJ4+CL4+CN4+CP4+CR4+CT4+CV4 -> 127 | CY4: =CW4/CX4 -> 88.42007874
A5: 2016010131 | B5: 耿夏欣 | C5: 64.0 | D5: 6 | E5: 68.0 | F5: 4 | G5: 83.0 | H5: 2 | I5: 88.0 | J5: 2 | K5: 66.0 | L5: 1 | M5: 68.0 | N5: 4 | O5: 85.0 | P5: 2 | Q5: 85.0 | R5: 3 | S5: 81.0 | T5: 5 | U5: 90.0 | V5: 1 | W5: 85.0 | X5: 4 | Y5: 76.0 | Z5: 3 | AA5: 90.0 | AB5: 2 | AC5: 73.0 | AD5: 2 | AE5: 71.0 | AF5: 2 | AG5: 82.0 | AH5: 1 | AI5: 74.0 | AJ5: 3 | AK5: 89.0 | AL5: 1.5 | AM5: 80.0 | AN5: 2 | AO5: 66.0 | AP5: 3.5 | AQ5: 90.0 | AR5: 1 | AS5: 93.0 | AT5: 2 | AU5: 77.0 | AV5: 4.5 | AW5: 80.0 | AX5: 4 | AY5: 91.0 | AZ5: 4 | BA5: 83.0 | BB5: 2.5 | BC5: 69.0 | BD5: 4 | BE5: 91.0 | BF5: 1 | BG5: 80.0 | BH5: 2 | BI5: 86.0 | BJ5: 1 | BK5: 60.0 | BL5: 4 | BM5: 81.0 | BN5: 2 | BO5: 86.0 | BP5: 3 | BQ5: 81.0 | BR5: 3 | BS5: 84.0 | BT5: 2.5 | BU5: 68.0 | BV5: 2 | BW5: 76.0 | BX5: 3.5 | BY5: 90.0 | BZ5: 3 | CA5: 90.0 | CB5: 3 | CC5: 89.0 | CD5: 1 | CE5: 93.0 | CF5: 3 | CG5: 89.0 | CH5: 1 | CI5: 94.0 | CJ5: 2 | CK5: 94.0 | CL5: 3 | CM5: 89.0 | CN5: 2 | CO5: 80.0 | CP5: 3 | CQ5: 78.0 | CR5: 3 | CS5: 80 | CT5: 2 | CU5: 84.0 | CV5: 1 | CW5: =C5*D5+E5*F5+G5*H5+I5*J5+K5*L5+M5*N5+O5*P5+Q5*R5+S5*T5+U5*V5+W5*X5+Y5*Z5+AA5*AB5+AC5*AD5+AE5*AF5+AG5*AH5+AI5*AJ5+AK5*AL5+AM5*AN5+AO5*AP5+AQ5*AR5+AS5*AT5+AU5*AV5+AW5*AX5+AY5*AZ5+BA5*BB5+BC5*BD5+BE5*BF5+BG5*BH5+BI5*BJ5+BK5*BL5+BM5*BN5+BO5*BP5+BQ5*BR5+BS5*BT5+BU5*BV5+BW5*BX5+BY5*BZ5+CA5*CB5+CC5*CD5+CE5*CF5+CG5*CH5+CI5*CJ5+CK5*CL5+CM5*CN5+CO5*CP5+CQ5*CR5+CS5*CT5+CU5*CV5 -> 10125.5 | CX5: =D5+F5+H5+J5+L5+N5+P5+R5+T5+V5+X5+Z5+AB5+AD5+AF5+AH5+AJ5+AL5+AN5+AP5+AR5+AT5+AV5+AX5+AZ5+BB5+BD5+BF5+BH5+BJ5+BL5+BN5+BP5+BR5+BT5+BV5+BX5+BZ5+CB5+CD5+CF5+CH5+CJ5+CL5+CN5+CP5+CR5+CT5+CV5 -> 127 | CY5: =CW5/CX5 -> 79.72834646
A6: 2016010132 | B6: 郭超洁 | C6: 83.0 | D6: 6 | E6: 95.0 | F6: 4 | G6: 92.0 | H6: 2 | I6: 90.0 | J6: 2 | K6: 75.0 | L6: 1 | M6: 82.0 | N6: 4 | O6: 82.0 | P6: 2 | Q6: 95.0 | R6: 3 | S6: 94.0 | T6: 5 | U6: 92.0 | V6: 1 | W6: 90.0 | X6: 4 | Y6: 98.0 | Z6: 3 | AA6: 91.0 | AB6: 2 | AC6: 86.0 | AD6: 2 | AE6: 91.0 | AF6: 2 | AG6: 94.0 | AH6: 1 | AI6: 90.0 | AJ6: 3 | AK6: 88.0 | AL6: 1.5 | AM6: 94 | AN6: 2 | AO6: 87.0 | AP6: 3.5 | AQ6: 80.0 | AR6: 1 | AS6: 91.0 | AT6: 2 | AU6: 91.0 | AV6: 4.5 | AW6: 90.0 | AX6: 4 | AY6: 92.0 | AZ6: 4 | BA6: 91.0 | BB6: 2.5 | BC6: 81.0 | BD6: 4 | BE6: 94.0 | BF6: 1 | BG6: 92.0 | BH6: 2 | BI6: 90.0 | BJ6: 1 | BK6: 83 | BL6: 4 | BM6: 91.0 | BN6: 2 | BO6: 99.0 | BP6: 3 | BQ6: 96.0 | BR6: 3 | BS6: 86.0 | BT6: 2.5 | BU6: 83.0 | BV6: 2 | BW6: 96.0 | BX6: 3.5 | BY6: 90.0 | BZ6: 3 | CA6: 95.0 | CB6: 3 | CC6: 94.0 | CD6: 1 | CE6: 0 | CF6: 0 | CG6: 86.0 | CH6: 1 | CI6: 98.0 | CJ6: 2 | CK6: 92 | CL6: 3 | CM6: 93.0 | CN6: 2 | CO6: 96.0 | CP6: 3 | CQ6: 92.0 | CR6: 3 | CS6: 92 | CT6: 2 | CU6: 87.0 | CV6: 1 | CW6: 11197.5 | CX6: 124 | CY6: 90.30241935
A7: 2016010135 | B7: 解竞帆 | C7: 61.0 | D7: 6 | E7: 60.0 | F7: 4 | G7: 81.0 | H7: 2 | I7: 78.0 | J7: 2 | K7: 90.0 | L7: 1 | M7: 70.0 | N7: 4 | O7: 74.0 | P7: 2 | Q7: 61.0 | R7: 3 | S7: 73.0 | T7: 5 | U7: 96.0 | V7: 1 | W7: 76.0 | X7: 4 | Y7: 61.0 | Z7: 3 | AA7: 86.0 | AB7: 2 | AC7: 74.0 | AD7: 2 | AE7: 72.0 | AF7: 2 | AG7: 89.0 | AH7: 1 | AI7: 70.0 | AJ7: 3 | AK7: 85.6 | AL7: 1.5 | AM7: 73.0 | AN7: 2 | AO7: 62.0 | AP7: 3.5 | AQ7: 90.0 | AR7: 1 | AS7: 80.0 | AT7: 2 | AU7: 70.0 | AV7: 4.5 | AW7: 76.0 | AX7: 4 | AY7: 82.0 | AZ7: 4 | BA7: 82.0 | BB7: 2.5 | BC7: 73.0 | BD7: 4 | BE7: 93.0 | BF7: 1 | BG7: 92.0 | BH7: 2 | BI7: 85.0 | BJ7: 1 | BK7: 61.0 | BL7: 4 | BM7: 81.0 | BN7: 2 | BO7: 80.0 | BP7: 3 | BQ7: 88.0 | BR7: 3 | BS7: 77.0 | BT7: 2.5 | BU7: 67.0 | BV7: 2 | BW7: 86.0 | BX7: 3.5 | BY7: 74.0 | BZ7: 3 | CA7: 91.0 | CB7: 3 | CC7: 93.0 | CD7: 1 | CE7: 94.0 | CF7: 3 | CG7: 82.0 | CH7: 1 | CI7: 94.0 | CJ7: 2 | CK7: 73.0 | CL7: 3 | CM7: 90.0 | CN7: 2 | CO7: 90.0 | CP7: 3 | CQ7: 85.0 | CR7: 3 | CS7: 80 | CT7: 2 | CU7: 98.0 | CV7: 1 | CW7: 9742.9 | CX7: 127 | CY7: 76.71574803
A8: 2016010136 | B8: 赖雨薇 | C8: 66.0 | D8: 6 | E8: 76.0 | F8: 4 | G8: 77.0 | H8: 2 | I8: 78.0 | J8: 2 | K8: 61.0 | L8: 1 | M8: 60.0 | N8: 4 | O8: 80.0 | P8: 2 | Q8: 63.0 | R8: 3 | S8: 84.0 | T8: 5 | U8: 86.0 | V8: 1 | W8: 76.0 | X8: 4 | Y8: 60.0 | Z8: 3 | AA8: 84.0 | AB8: 2 | AC8: 66.0 | AD8: 2 | AE8: 73.0 | AF8: 2 | AG8: 86.0 | AH8: 1 | AI8: 68.0 | AJ8: 3 | AK8: 85.0 | AL8: 1.5 | AM8: 80.0 | AN8: 2 | AO8: 68.0 | AP8: 3.5 | AQ8: 89.0 | AR8: 1 | AS8: 74.0 | AT8: 2 | AU8: 62.0 | AV8: 4.5 | AW8: 74.0 | AX8: 4 | AY8: 76.0 | AZ8: 4 | BA8: 81.0 | BB8: 2.5 | BC8: 60.0 | BD8: 4 | BE8: 87.0 | BF8: 1 | BG8: 84.0 | BH8: 2 | BI8: 90.0 | BJ8: 1 | BK8: 60.0 | BL8: 4 | BM8: 85.0 | BN8: 2 | BO8: 92.0 | BP8: 3 | BQ8: 80.0 | BR8: 3 | BS8: 79.0 | BT8: 2.5 | BU8: 65.0 | BV8: 2 | BW8: 85.0 | BX8: 3.5 | BY8: 81.0 | BZ8: 3 | CA8: 94.0 | CB8: 3 | CC8: 88.0 | CD8: 1 | CE8: 93.0 | CF8: 3 | CG8: 92.0 | CH8: 1 | CI8: 90.0 | CJ8: 2 | CK8: 85.0 | CL8: 3 | CM8: 90.0 | CN8: 2 | CO8: 90.0 | CP8: 3 | CQ8: 95.0 | CR8: 3 | CS8: 90 | CT8: 2 | CU8: 90.0 | CV8: 1 | CW8: 9790 | CX8: 127 | CY8: 77.08661417
A9: 2016010137 | B9: 罗抒晗 | C9: 68.0 | D9: 6 | E9: 69.0 | F9: 4 | G9: 76.0 | H9: 2 | I9: 77.0 | J9: 2 | K9: 77.0 | L9: 1 | M9: 74.0 | N9: 4 | O9: 81.0 | P9: 2 | Q9: 67.0 | R9: 3 | S9: 73.0 | T9: 5 | U9: 86.0 | V9: 1 | W9: 83.0 | X9: 4 | Y9: 63.0 | Z9: 3 | AA9: 87.0 | AB9: 2 | AC9: 71.0 | AD9: 2 | AE9: 86.0 | AF9: 2 | AG9: 89.0 | AH9: 1 | AI9: 66.0 | AJ9: 3 | AK9: 86.0 | AL9: 1.5 | AM9: 80.0 | AN9: 2 | AO9: 68.0 | AP9: 3.5 | AQ9: 83.0 | AR9: 1 | AS9: 83.0 | AT9: 2 | AU9: 70.0 | AV9: 4.5 | AW9: 74.0 | AX9: 4 | AY9: 82.0 | AZ9: 4 | BA9: 84.0 | BB9: 2.5 | BC9: 62.0 | BD9: 4 | BE9: 86.0 | BF9: 1 | BG9: 82.0 | BH9: 2 | BI9: 87.0 | BJ9: 1 | BK9: 67.0 | BL9: 4 | BM9: 84.0 | BN9: 2 | BO9: 82.0 | BP9: 3 | BQ9: 87.0 | BR9: 3 | BS9: 83.0 | BT9: 2.5 | BU9: 73.0 | BV9: 2 | BW9: 74.0 | BX9: 3.5 | BY9: 71.0 | BZ9: 3 | CA9: 90.0 | CB9: 3 | CC9: 90.0 | CD9: 1 | CE9: 96.0 | CF9: 3 | CG9: 89.0 | CH9: 1 | CI9: 93.0 | CJ9: 2 | CK9: 86.0 | CL9: 3 | CM9: 91.0 | CN9: 2 | CO9: 90.0 | CP9: 3 | CQ9: 90.0 | CR9: 3 | CS9: 83 | CT9: 2 | CU9: 86.0 | CV9: 1 | CW9: 9906.5 | CX9: 127 | CY9: 78.00393701
A10: 2016010138 | B10: 麻晓梅 | C10: 70.0 | D10: 6 | E10: 91.0 | F10: 4 | G10: 85.0 | H10: 2 | I10: 83.0 | J10: 2 | K10: 73.0 | L10: 1 | M10: 71.0 | N10: 4 | O10: 92.0 | P10: 2 | Q10: 85.0 | R10: 3 | S10: 92.0 | T10: 5 | U10: 78.0 | V10: 1 | W10: 81.0 | X10: 4 | Y10: 81.0 | Z10: 3 | AA10: 89.0 | AB10: 2 | AC10: 87.0 | AD10: 2 | AE10: 82.0 | AF10: 2 | AG10: 86.0 | AH10: 1 | AI10: 77.0 | AJ10: 3 | AK10: 87.0 | AL10: 1.5 | AM10: 87.0 | AN10: 2 | AO10: 84.0 | AP10: 3.5 | AQ10: 82.0 | AR10: 1 | AS10: 88.0 | AT10: 2 | AU10: 91.0 | AV10: 4.5 | AW10: 90.0 | AX10: 4 | AY10: 90.0 | AZ10: 4 | BA10: 88.0 | BB10: 2.5 | BC10: 88.0 | BD10: 4 | BE10: 88.0 | BF10: 1 | BG10: 90.0 | BH10: 2 | BI10: 89.0 | BJ10: 1 | BK10: 67.0 | BL10: 4 | BM10: 85.0 | BN10: 2 | BO10: 90.0 | BP10: 3 | BQ10: 91.0 | BR10: 3 | BS10: 92.0 | BT10: 2.5 | BU10: 82.0 | BV10: 2 | BW10: 91.0 | BX10: 3.5 | BY10: 88.0 | BZ10: 3 | CA10: 93.0 | CB10: 3 | CC10: 86.0 | CD10: 1 | CE10: 94.0 | CF10: 3 | CG10: 100.0 | CH10: 1 | CI10: 92.0 | CJ10: 2 | CK10: 97.0 | CL10: 3 | CM10: 96.0 | CN10: 2 | CO10: 87.0 | CP10: 3 | CQ10: 92.0 | CR10: 3 | CS10: 90 | CT10: 2 | CU10: 89.0 | CV10: 1 | CW10: 10946.5 | CX10: 127 | CY10: 86.19291339
A11: 2016010139 | B11: 孙霄 | C11: 75.0 | D11: 6 | E11: 73.0 | F11: 4 | G11: 77.0 | H11: 2 | I11: 84.0 | J11: 2 | K11: 77.0 | L11: 1 | M11: 84.0 | N11: 4 | O11: 85.0 | P11: 2 | Q11: 80.0 | R11: 3 | S11: 89.0 | T11: 5 | U11: 84.0 | V11: 1 | W11: 85.0 | X11: 4 | Y11: 87.0 | Z11: 3 | AA11: 84.0 | AB11: 2 | AC11: 81.0 | AD11: 2 | AE11: 90.0 | AF11: 2 | AG11: 89.0 | AH11: 1 | AI11: 86.0 | AJ11: 3 | AK11: 85.0 | AL11: 1.5 | AM11: 90.0 | AN11: 2 | AO11: 90.0 | AP11: 3.5 | AQ11: 86.0 | AR11: 1 | AS11: 82.0 | AT11: 2 | AU11: 90.0 | AV11: 4.5 | AW11: 86.0 | AX11: 4 | AY11: 93.0 | AZ11: 4 | BA11: 86.0 | BB11: 2.5 | BC11: 83.0 | BD11: 4 | BE11: 86.0 | BF11: 1 | BG11: 84.0 | BH11: 2 | BI11: 89.0 | BJ11: 1 | BK11: 66.0 | BL11: 4 | BM11: 84.0 | BN11: 2 | BO11: 96.0 | BP11: 3 | BQ11: 83.0 | BR11: 3 | BS11: 91.0 | BT11: 2.5 | BU11: 81.0 | BV11: 2 | BW11: 83.0 | BX11: 3.5 | BY11: 90.0 | BZ11: 3 | CA11: 92.0 | CB11: 3 | CC11: 88.0 | CD11: 1 | CE11: 97.0 | CF11: 3 | CG11: 88.0 | CH11: 1 | CI11: 90.0 | CJ11: 2 | CK11: 96.0 | CL11: 3 | CM11: 90.0 | CN11: 2 | CO11: 93.0 | CP11: 3 | CQ11: 88.0 | CR11: 3 | CS11: 88 | CT11: 2 | CU11: 93.0 | CV11: 1 | CW11: 10879.5 | CX11: 127 | CY11: 85.66535433
A12: 2016010140 | B12: 王明洋 | C12: 62.0 | D12: 6 | E12: 60.0 | F12: 4 | G12: 84.0 | H12: 2 | I12: 83.0 | J12: 2 | K12: 64.0 | L12: 1 | M12: 78.0 | N12: 4 | O12: 68.0 | P12: 2 | Q12: 62.0 | R12: 3 | S12: 68.0 | T12: 5 | U12: 86.0 | V12: 1 | W12: 91.0 | X12: 4 | Y12: 67.0 | Z12: 3 | AA12: 83.0 | AB12: 2 | AC12: 67.0 | AD12: 2 | AE12: 86.0 | AF12: 2 | AG12: 90.0 | AH12: 1 | AI12: 73.0 | AJ12: 3 | AK12: 85.0 | AL12: 1.5 | AM12: 91.0 | AN12: 2 | AO12: 75.0 | AP12: 3.5 | AQ12: 88.0 | AR12: 1 | AS12: 82.0 | AT12: 2 | AU12: 67.0 | AV12: 4.5 | AW12: 69.0 | AX12: 4 | AY12: 90.0 | AZ12: 4 | BA12: 91.0 | BB12: 2.5 | BC12: 84.0 | BD12: 4 | BE12: 85.0 | BF12: 1 | BG12: 88.0 | BH12: 2 | BI12: 89.0 | BJ12: 1 | BK12: 63.0 | BL12: 4 | BM12: 88.0 | BN12: 2 | BO12: 92.0 | BP12: 3 | BQ12: 91.0 | BR12: 3 | BS12: 86.0 | BT12: 2.5 | BU12: 77.0 | BV12: 2 | BW12: 91.0 | BX12: 3.5 | BY12: 88.0 | BZ12: 3 | CA12: 90.0 | CB12: 3 | CC12: 93.0 | CD12: 1 | CE12: 95.0 | CF12: 3 | CG12: 89.0 | CH12: 1 | CI12: 93.0 | CJ12: 2 | CK12: 90.0 | CL12: 3 | CM12: 95.0 | CN12: 2 | CO12: 95.0 | CP12: 3 | CQ12: 89.0 | CR12: 3 | CS12: 86 | CT12: 2 | CU12: 94.0 | CV12: 1 | CW12: 10220.5 | CX12: 127 | CY12: 80.47637795
A13: 2016010141 | B13: 尹舒慧 | C13: 79.0 | D13: 6 | E13: 83.0 | F13: 4 | G13: 83.0 | H13: 2 | I13: 85.0 | J13: 2 | K13: 74.0 | L13: 1 | M13: 75.0 | N13: 4 | O13: 90.0 | P13: 2 | Q13: 84.0 | R13: 3 | S13: 95.0 | T13: 5 | U13: 83.0 | V13: 1 | W13: 82.0 | X13: 4 | Y13: 76.0 | Z13: 3 | AA13: 90.0 | AB13: 2 | AC13: 79.0 | AD13: 2 | AE13: 82.0 | AF13: 2 | AG13: 85.0 | AH13: 1 | AI13: 68.0 | AJ13: 3 | AK13: 84.0 | AL13: 1.5 | AM13: 83.0 | AN13: 2 | AO13: 82.0 | AP13: 3.5 | AQ13: 92.0 | AR13: 1 | AS13: 82.0 | AT13: 2 | AU13: 86.0 | AV13: 4.5 | AW13: 87.0 | AX13: 4 | AY13: 97.0 | AZ13: 4 | BA13: 88.0 | BB13: 2.5 | BC13: 81.0 | BD13: 4 | BE13: 84.0 | BF13: 1 | BG13: 92.0 | BH13: 2 | BI13: 85.0 | BJ13: 1 | BK13: 64.0 | BL13: 4 | BM13: 87.0 | BN13: 2 | BO13: 94.0 | BP13: 3 | BQ13: 91.0 | BR13: 3 | BS13: 88.0 | BT13: 2.5 | BU13: 63.0 | BV13: 2 | BW13: 96.0 | BX13: 3.5 | BY13: 91.0 | BZ13: 3 | CA13: 91.0 | CB13: 3 | CC13: 95.0 | CD13: 1 | CE13: 97.0 | CF13: 3 | CG13: 81.0 | CH13: 1 | CI13: 92.0 | CJ13: 2 | CK13: 91.0 | CL13: 3 | CM13: 94.0 | CN13: 2 | CO13: 92.0 | CP13: 3 | CQ13: 95.0 | CR13: 3 | CS13: 87 | CT13: 2 | CU13: 91.0 | CV13: 1 | CW13: 10859 | CX13: 127 | CY13: 85.50393701
A14: 2016010143 | B14: 丁紫鹤 | C14: 60 | D14: 6 | E14: 60.0 | F14: 4 | G14: 78.0 | H14: 2 | I14: 80.0 | J14: 2 | K14: 80.0 | L14: 1 | M14: 61.0 | N14: 4 | O14: 78.0 | P14: 2 | Q14: 62.0 | R14: 3 | S14: 60 | T14: 5 | U14: 84.0 | V14: 1 | W14: 64.0 | X14: 4 | Y14: 70.0 | Z14: 3 | AA14: 74.0 | AB14: 2 | AC14: 60.0 | AD14: 2 | AE14: 65.0 | AF14: 2 | AG14: 77 | AH14: 1 | AI14: 85.0 | AJ14: 3 | AK14: 84.4 | AL14: 1.5 | AM14: 64.0 | AN14: 2 | AO14: 61.0 | AP14: 3.5 | AQ14: 91.0 | AR14: 1 | AS14: 73.0 | AT14: 2 | AU14: 60.0 | AV14: 4.5 | AW14: 60.0 | AX14: 4 | AY14: 74.0 | AZ14: 4 | BA14: 66.0 | BB14: 2.5 | BC14: 60.0 | BD14: 4 | BE14: 81.0 | BF14: 1 | BG14: 74.0 | BH14: 2 | BI14: 78.0 | BJ14: 1 | BK14: 37.0 | BL14: 4 | BM14: 73.0 | BN14: 2 | BO14: 61.0 | BP14: 3 | BQ14: 89.0 | BR14: 3 | BS14: 76.0 | BT14: 2.5 | BU14: 46.0 | BV14: 2 | BW14: 60 | BX14: 3.5 | BY14: 60 | BZ14: 3 | CA14: 76.0 | CB14: 3 | CC14: 88.0 | CD14: 1 | CE14: 82.0 | CF14: 3 | CG14: 85.0 | CH14: 1 | CI14: 92.0 | CJ14: 2 | CK14: 61.0 | CL14: 3 | CM14: 76.0 | CN14: 2 | CO14: 48.0 | CP14: 3 | CQ14: 62.0 | CR14: 3 | CS14: 83 | CT14: 2 | CU14: 67.0 | CV14: 1 | CW14: 8530.1 | CX14: 127 | CY14: 67.16614173
A15: 2016010144 | B15: 李臣委 | C15: 64.0 | D15: 6 | E15: 60.0 | F15: 4 | G15: 76.0 | H15: 2 | I15: 86.0 | J15: 2 | K15: 73.0 | L15: 1 | M15: 74.0 | N15: 4 | O15: 81.0 | P15: 2 | Q15: 88.0 | R15: 3 | S15: 60.0 | T15: 5 | U15: 80.0 | V15: 1 | W15: 80.0 | X15: 4 | Y15: 61.0 | Z15: 3 | AA15: 52.0 | AB15: 2 | AC15: 60.0 | AD15: 2 | AE15: 78.0 | AF15: 2 | AG15: 75.0 | AH15: 1 | AI15: 82.0 | AJ15: 3 | AK15: 84.3 | AL15: 1.5 | AM15: 74.0 | AN15: 2 | AO15: 68.0 | AP15: 3.5 | AQ15: 65 | AR15: 1 | AS15: 78.0 | AT15: 2 | AU15: 61.0 | AV15: 4.5 | AW15: 79.0 | AX15: 4 | AY15: 62.0 | AZ15: 4 | BA15: 81.0 | BB15: 2.5 | BC15: 61.0 | BD15: 4 | BE15: 84.0 | BF15: 1 | BG15: 77.0 | BH15: 2 | BI15: 84.0 | BJ15: 1 | BK15: 47.0 | BL15: 4 | BM15: 80.0 | BN15: 2 | BO15: 70.0 | BP15: 3 | BQ15: 82.0 | BR15: 3 | BS15: 77.0 | BT15: 2.5 | BU15: 61.0 | BV15: 2 | BW15: 60 | BX15: 3.5 | BY15: 80.0 | BZ15: 3 | CA15: 80.0 | CB15: 3 | CC15: 85.0 | CD15: 1 | CE15: 87.0 | CF15: 3 | CG15: 85.0 | CH15: 1 | CI15: 81.0 | CJ15: 2 | CK15: 63.0 | CL15: 3 | CM15: 82.0 | CN15: 2 | CO15: 70.0 | CP15: 3 | CQ15: 81.0 | CR15: 3 | CS15: 80 | CT15: 2 | CU15: 76.0 | CV15: 1 | CW15: 9110.95 | CX15: 127 | CY15: 71.73976378
A16: 2016010145 | B16: 刘泽 | C16: 65.0 | D16: 6 | E16: 62.0 | F16: 4 | G16: 71.0 | H16: 2 | I16: 75.0 | J16: 2 | K16: 79.0 | L16: 1 | M16: 74.0 | N16: 4 | O16: 74.0 | P16: 2 | Q16: 69.0 | R16: 3 | S16: 63.0 | T16: 5 | U16: 90.0 | V16: 1 | W16: 70.0 | X16: 4 | Y16: 60.0 | Z16: 3 | AA16: 80.0 | AB16: 2 | AC16: 64.0 | AD16: 2 | AE16: 60.0 | AF16: 2 | AG16: 90.0 | AH16: 1 | AI16: 40.0 | AJ16: 3 | AK16: 75.9 | AL16: 1.5 | AM16: 72.0 | AN16: 2 | AO16: 40.0 | AP16: 3.5 | AQ16: 89.0 | AR16: 1 | AS16: 76.0 | AT16: 2 | AU16: 64.0 | AV16: 4.5 | AW16: 70.0 | AX16: 4 | AY16: 83.0 | AZ16: 4 | BA16: 78.0 | BB16: 2.5 | BC16: 37.0 | BD16: 4 | BE16: 76.0 | BF16: 1 | BG16: 81.0 | BH16: 2 | BI16: 76.0 | BJ16: 1 | BK16: 39.0 | BL16: 4 | BM16: 80.0 | BN16: 2 | BO16: 60.0 | BP16: 3 | BQ16: 76.0 | BR16: 3 | BS16: 74.0 | BT16: 2.5 | BU16: 42.0 | BV16: 2 | BW16: 60 | BX16: 3.5 | BY16: 66.0 | BZ16: 3 | CA16: 70.0 | CB16: 3 | CC16: 82.0 | CD16: 1 | CE16: 87.0 | CF16: 3 | CG16: 71.0 | CH16: 1 | CI16: 94.0 | CJ16: 2 | CK16: 70.0 | CL16: 3 | CM16: 62.0 | CN16: 2 | CO16: 64.0 | CP16: 3 | CQ16: 69.0 | CR16: 3 | CS16: 78 | CT16: 2 | CU16: 65.0 | CV16: 1 | CW16: 8505.85 | CX16: 127 | CY16: 66.97519685
A17: 2016010146 | B17: 盛梦凡 | C17: 45.0 | D17: 6 | E17: 60.0 | F17: 4 | G17: 84.0 | H17: 2 | I17: 81.0 | J17: 2 | K17: 67.0 | L17: 1 | M17: 69.0 | N17: 4 | O17: 84.0 | P17: 2 | Q17: 68.0 | R17: 3 | S17: 48.0 | T17: 5 | U17: 77.0 | V17: 1 | W17: 73.0 | X17: 4 | Y17: 70.0 | Z17: 3 | AA17: 72.0 | AB17: 2 | AC17: 70.0 | AD17: 2 | AE17: 69.0 | AF17: 2 | AG17: 75.0 | AH17: 1 | AI17: 80.0 | AJ17: 3 | AK17: 80.3 | AL17: 1.5 | AM17: 60.0 | AN17: 2 | AO17: 65.0 | AP17: 3.5 | AQ17: 62.0 | AR17: 1 | AS17: 74.0 | AT17: 2 | AU17: 60.0 | AV17: 4.5 | AW17: 60.0 | AX17: 4 | AY17: 81.0 | AZ17: 4 | BA17: 74.0 | BB17: 2.5 | BC17: 65.0 | BD17: 4 | BE17: 81.0 | BF17: 1 | BG17: 87.0 | BH17: 2 | BI17: 79.0 | BJ17: 1 | BK17: 42.0 | BL17: 4 | BM17: 75.0 | BN17: 2 | BO17: 73.0 | BP17: 3 | BQ17: 86.0 | BR17: 3 | BS17: 80.0 | BT17: 2.5 | BU17: 53.0 | BV17: 2 | BW17: 68.0 | BX17: 3.5 | BY17: 62.0 | BZ17: 3 | CA17: 72.0 | CB17: 3 | CC17: 79.0 | CD17: 1 | CE17: 89.0 | CF17: 3 | CG17: 89.0 | CH17: 1 | CI17: 87.0 | CJ17: 2 | CK17: 71.0 | CL17: 3 | CM17: 87.0 | CN17: 2 | CO17: 75.0 | CP17: 3 | CQ17: 81.0 | CR17: 3 | CS17: 76 | CT17: 2 | CU17: 71.0 | CV17: 1 | CW17: 8829.95 | CX17: 127 | CY17: 69.52716535
A18: 2016010148 | B18: 王一帆 | C18: 0 | D18: 6 | E18: 60 | F18: 4 | G18: 80.0 | H18: 2 | I18: 76.0 | J18: 2 | K18: 65.0 | L18: 1 | M18: 60.0 | N18: 4 | O18: 83.0 | P18: 2 | Q18: 64.0 | R18: 3 | S18: 60.0 | T18: 5 | U18: 0 | V18: 1 | W18: 60.0 | X18: 4 | Y18: 66.0 | Z18: 3 | AA18: 78.0 | AB18: 2 | AC18: 0 | AD18: 2 | AE18: 0 | AF18: 2 | AG18: 68.0 | AH18: 1 | AI18: 86.0 | AJ18: 3 | AK18: 64.0 | AL18: 1.5 | AM18: 65.0 | AN18: 2 | AO18: 66.0 | AP18: 3.5 | AQ18: 84.0 | AR18: 1 | AS18: 84.0 | AT18: 2 | AU18: 56.0 | AV18: 4.5 | AW18: 66.0 | AX18: 4 | AY18: 85.0 | AZ18: 4 | BA18: 60.0 | BB18: 2.5 | BC18: 54.0 | BD18: 4 | BE18: 85.0 | BF18: 1 | BG18: 77.0 | BH18: 2 | BI18: 80.0 | BJ18: 1 | BK18: 66 | BL18: 4 | BM18: 78.0 | BN18: 2 | BO18: 68.0 | BP18: 3 | BQ18: 86.0 | BR18: 3 | BS18: 73.0 | BT18: 2.5 | BU18: 60 | BV18: 2 | BW18: 51.0 | BX18: 3.5 | BY18: 78.0 | BZ18: 3 | CA18: 70.0 | CB18: 3 | CC18: 83.0 | CD18: 1 | CE18: 79.0 | CF18: 3 | CG18: 77.0 | CH18: 1 | CI18: 90.0 | CJ18: 2 | CK18: 13.0 | CL18: 3 | CM18: 60.0 | CN18: 2 | CO18: 64.0 | CP18: 3 | CQ18: 73.0 | CR18: 3 | CS18: 86 | CT18: 2 | CU18: 60.0 | CV18: 1 | CW18: 7871 | CX18: 127 | CY18: 61.97637795
A19: 2016010150 | B19: 徐加霸 | C19: 66.0 | D19: 6 | E19: 60 | F19: 4 | G19: 77.0 | H19: 2 | I19: 79.0 | J19: 2 | K19: 85.0 | L19: 1 | M19: 61.0 | N19: 4 | O19: 82.0 | P19: 2 | Q19: 78.0 | R19: 3 | S19: 60.0 | T19: 5 | U19: 88.0 | V19: 1 | W19: 65.0 | X19: 4 | Y19: 70.0 | Z19: 3 | AA19: 81.0 | AB19: 2 | AC19: 70.0 | AD19: 2 | AE19: 73.0 | AF19: 2 | AG19: 95.0 | AH19: 1 | AI19: 71.0 | AJ19: 3 | AK19: 83.8 | AL19: 1.5 | AM19: 70.0 | AN19: 2 | AO19: 74.0 | AP19: 3.5 | AQ19: 86.0 | AR19: 1 | AS19: 72.0 | AT19: 2 | AU19: 77.0 | AV19: 4.5 | AW19: 76.0 | AX19: 4 | AY19: 81.0 | AZ19: 4 | BA19: 81.0 | BB19: 2.5 | BC19: 67.0 | BD19: 4 | BE19: 79.0 | BF19: 1 | BG19: 87.0 | BH19: 2 | BI19: 85.0 | BJ19: 1 | BK19: 63 | BL19: 4 | BM19: 81.0 | BN19: 2 | BO19: 76.0 | BP19: 3 | BQ19: 84.0 | BR19: 3 | BS19: 81.0 | BT19: 2.5 | BU19: 54.0 | BV19: 2 | BW19: 68.0 | BX19: 3.5 | BY19: 72.0 | BZ19: 3 | CA19: 83.0 | CB19: 3 | CC19: 88.0 | CD19: 1 | CE19: 87.0 | CF19: 3 | CG19: 77.0 | CH19: 1 | CI19: 94.0 | CJ19: 2 | CK19: 85.0 | CL19: 3 | CM19: 85.0 | CN19: 2 | CO19: 71.0 | CP19: 3 | CQ19: 85.0 | CR19: 3 | CS19: 81 | CT19: 2 | CU19: 72.0 | CV19: 1 | CW19: 9475.2 | CX19: 127 | CY19: 74.60787402
A20: 2016010151 | B20: 杨宇 | C20: 60.0 | D20: 6 | E20: 60 | F20: 4 | G20: 82.0 | H20: 2 | I20: 90.0 | J20: 2 | K20: 75.0 | L20: 1 | M20: 66.0 | N20: 4 | O20: 80.0 | P20: 2 | Q20: 71.0 | R20: 3 | S20: 79.0 | T20: 5 | U20: 77.0 | V20: 1 | W20: 72.0 | X20: 4 | Y20: 63.0 | Z20: 3 | AA20: 81.0 | AB20: 2 | AC20: 73.0 | AD20: 2 | AE20: 68.0 | AF20: 2 | AG20: 86.0 | AH20: 1 | AI20: 79.0 | AJ20: 3 | AK20: 83.0 | AL20: 1.5 | AM20: 60.0 | AN20: 2 | AO20: 64.0 | AP20: 3.5 | AQ20: 76 | AR20: 1 | AS20: 87.0 | AT20: 2 | AU20: 60.0 | AV20: 4.5 | AW20: 81.0 | AX20: 4 | AY20: 92.0 | AZ20: 4 | BA20: 84.0 | BB20: 2.5 | BC20: 60.0 | BD20: 4 | BE20: 82.0 | BF20: 1 | BG20: 88.0 | BH20: 2 | BI20: 84.0 | BJ20: 1 | BK20: 60 | BL20: 4 | BM20: 84.0 | BN20: 2 | BO20: 80.0 | BP20: 3 | BQ20: 79.0 | BR20: 3 | BS20: 78.0 | BT20: 2.5 | BU20: 61.0 | BV20: 2 | BW20: 72.0 | BX20: 3.5 | BY20: 76.0 | BZ20: 3 | CA20: 86.0 | CB20: 3 | CC20: 90.0 | CD20: 1 | CE20: 90.0 | CF20: 3 | CG20: 91.0 | CH20: 1 | CI20: 95.0 | CJ20: 2 | CK20: 76.0 | CL20: 3 | CM20: 85.0 | CN20: 2 | CO20: 74.0 | CP20: 3 | CQ20: 86.0 | CR20: 3 | CS20: 91 | CT20: 2 | CU20: 76.0 | CV20: 1 | CW20: 9561.5 | CX20: 127 | CY20: 75.28740157
A21: 2016010152 | B21: 余锦标 | C21: 60.0 | D21: 6 | E21: 60 | F21: 4 | G21: 74.0 | H21: 2 | I21: 84.0 | J21: 2 | K21: 75.0 | L21: 1 | M21: 75.0 | N21: 4 | O21: 69.0 | P21: 2 | Q21: 70.0 | R21: 3 | S21: 65.0 | T21: 5 | U21: 88.0 | V21: 1 | W21: 72.0 | X21: 4 | Y21: 70.0 | Z21: 3 | AA21: 72.0 | AB21: 2 | AC21: 63.0 | AD21: 2 | AE21: 94.0 | AF21: 2 | AG21: 92.0 | AH21: 1 | AI21: 94.0 | AJ21: 3 | AK21: 78.9 | AL21: 1.5 | AM21: 66.0 | AN21: 2 | AO21: 85.0 | AP21: 3.5 | AQ21: 79.0 | AR21: 1 | AS21: 81.0 | AT21: 2 | AU21: 65.0 | AV21: 4.5 | AW21: 68.0 | AX21: 4 | AY21: 69.0 | AZ21: 4 | BA21: 69.0 | BB21: 2.5 | BC21: 62.0 | BD21: 4 | BE21: 79.0 | BF21: 1 | BG21: 60.0 | BH21: 2 | BI21: 80.0 | BJ21: 1 | BK21: 64 | BL21: 4 | BM21: 78.0 | BN21: 2 | BO21: 72.0 | BP21: 3 | BQ21: 67.0 | BR21: 3 | BS21: 81.0 | BT21: 2.5 | BU21: 79 | BV21: 2 | BW21: 66.0 | BX21: 3.5 | BY21: 70.0 | BZ21: 3 | CA21: 76.0 | CB21: 3 | CC21: 81.0 | CD21: 1 | CE21: 82.0 | CF21: 3 | CG21: 86.0 | CH21: 1 | CI21: 92.0 | CJ21: 2 | CK21: 65.0 | CL21: 3 | CM21: 60.0 | CN21: 2 | CO21: 66.0 | CP21: 3 | CQ21: 74.0 | CR21: 3 | CS21: 80 | CT21: 2 | CU21: 80.0 | CV21: 1 | CW21: 9141.35 | CX21: 127 | CY21: 71.97913386
A22: 2016010154 | B22: 张一驰 | C22: 66.0 | D22: 6 | E22: 60 | F22: 4 | G22: 71.0 | H22: 2 | I22: 81.0 | J22: 2 | K22: 64.0 | L22: 1 | M22: 60.0 | N22: 4 | O22: 80.0 | P22: 2 | Q22: 60 | R22: 3 | S22: 60 | T22: 5 | U22: 82.0 | V22: 1 | W22: 60.0 | X22: 4 | Y22: 61.0 | Z22: 3 | AA22: 80.0 | AB22: 2 | AC22: 67.0 | AD22: 2 | AE22: 66.0 | AF22: 2 | AG22: 70.0 | AH22: 1 | AI22: 63.0 | AJ22: 3 | AK22: 74.0 | AL22: 1.5 | AM22: 60.0 | AN22: 2 | AO22: 69.0 | AP22: 3.5 | AQ22: 72 | AR22: 1 | AS22: 83.0 | AT22: 2 | AU22: 76.0 | AV22: 4.5 | AW22: 60 | AX22: 4 | AY22: 61.0 | AZ22: 4 | BA22: 65.0 | BB22: 2.5 | BC22: 63.0 | BD22: 4 | BE22: 76.0 | BF22: 1 | BG22: 67.0 | BH22: 2 | BI22: 75.0 | BJ22: 1 | BK22: 63.0 | BL22: 4 | BM22: 74.0 | BN22: 2 | BO22: 70.0 | BP22: 3 | BQ22: 69.0 | BR22: 3 | BS22: 67.0 | BT22: 2.5 | BU22: 51.0 | BV22: 2 | BW22: 67.0 | BX22: 3.5 | BY22: 65.0 | BZ22: 3 | CA22: 65.0 | CB22: 3 | CC22: 74.0 | CD22: 1 | CE22: 77.0 | CF22: 3 | CG22: 78.0 | CH22: 1 | CI22: 81.0 | CJ22: 2 | CK22: 67.0 | CL22: 3 | CM22: 62.0 | CN22: 2 | CO22: 60.0 | CP22: 3 | CQ22: 70.0 | CR22: 3 | CS22: 79 | CT22: 2 | CU22: 72.0 | CV22: 1 | CW22: 8511 | CX22: 127 | CY22: 67.01574803
A23: 2016010155 | B23: 赵启发 | C23: 60.0 | D23: 6 | E23: 60.0 | F23: 4 | G23: 85.0 | H23: 2 | I23: 79.0 | J23: 2 | K23: 79.0 | L23: 1 | M23: 64.0 | N23: 4 | O23: 74.0 | P23: 2 | Q23: 60 | R23: 3 | S23: 60.0 | T23: 5 | U23: 74.0 | V23: 1 | W23: 60.0 | X23: 4 | Y23: 70.0 | Z23: 3 | AA23: 78.0 | AB23: 2 | AC23: 72.0 | AD23: 2 | AE23: 86.0 | AF23: 2 | AG23: 92 | AH23: 1 | AI23: 89.0 | AJ23: 3 | AK23: 83.0 | AL23: 1.5 | AM23: 80.0 | AN23: 2 | AO23: 81.0 | AP23: 3.5 | AQ23: 77.0 | AR23: 1 | AS23: 84.0 | AT23: 2 | AU23: 53.0 | AV23: 4.5 | AW23: 73.0 | AX23: 4 | AY23: 75.0 | AZ23: 4 | BA23: 79.0 | BB23: 2.5 | BC23: 73.0 | BD23: 4 | BE23: 84.0 | BF23: 1 | BG23: 91.0 | BH23: 2 | BI23: 85.0 | BJ23: 1 | BK23: 65.0 | BL23: 4 | BM23: 73.0 | BN23: 2 | BO23: 74.0 | BP23: 3 | BQ23: 90.0 | BR23: 3 | BS23: 80.0 | BT23: 2.5 | BU23: 60.0 | BV23: 2 | BW23: 60.0 | BX23: 3.5 | BY23: 75.0 | BZ23: 3 | CA23: 90.0 | CB23: 3 | CC23: 82.0 | CD23: 1 | CE23: 94.0 | CF23: 3 | CG23: 82.0 | CH23: 1 | CI23: 91.0 | CJ23: 2 | CK23: 60.0 | CL23: 3 | CM23: 82.0 | CN23: 2 | CO23: 80.0 | CP23: 3 | CQ23: 76.0 | CR23: 3 | CS23: 89 | CT23: 2 | CU23: 83.0 | CV23: 1 | CW23: 9354 | CX23: 127 | CY23: 73.65354331
A24: 2016010156 | B24: 赵鑫 | C24: 60.0 | D24: 6 | E24: 60 | F24: 4 | G24: 81.0 | H24: 2 | I24: 75.0 | J24: 2 | K24: 87.0 | L24: 1 | M24: 60.0 | N24: 4 | O24: 88.0 | P24: 2 | Q24: 62.0 | R24: 3 | S24: 60.0 | T24: 5 | U24: 96.0 | V24: 1 | W24: 60 | X24: 4 | Y24: 65.0 | Z24: 3 | AA24: 62.0 | AB24: 2 | AC24: 60.0 | AD24: 2 | AE24: 70.0 | AF24: 2 | AG24: 81.0 | AH24: 1 | AI24: 87.0 | AJ24: 3 | AK24: 76.0 | AL24: 1.5 | AM24: 42.0 | AN24: 2 | AO24: 16.0 | AP24: 3.5 | AQ24: 81.0 | AR24: 1 | AS24: 78.0 | AT24: 2 | AU24: 60.0 | AV24: 4.5 | AW24: 66.0 | AX24: 4 | AY24: 74.0 | AZ24: 4 | BA24: 68.0 | BB24: 2.5 | BC24: 60.0 | BD24: 4 | BE24: 82.0 | BF24: 1 | BG24: 77.0 | BH24: 2 | BI24: 83.0 | BJ24: 1 | BK24: 38.0 | BL24: 4 | BM24: 76.0 | BN24: 2 | BO24: 60.0 | BP24: 3 | BQ24: 74.0 | BR24: 3 | BS24: 80.0 | BT24: 2.5 | BU24: 48.0 | BV24: 2 | BW24: 60.0 | BX24: 3.5 | BY24: 73.0 | BZ24: 3 | CA24: 73.0 | CB24: 3 | CC24: 86.0 | CD24: 1 | CE24: 83.0 | CF24: 3 | CG24: 85.0 | CH24: 1 | CI24: 84.0 | CJ24: 2 | CK24: 35.0 | CL24: 3 | CM24: 60.0 | CN24: 2 | CO24: 42.0 | CP24: 3 | CQ24: 70.0 | CR24: 3 | CS24: 81 | CT24: 2 | CU24: 77.0 | CV24: 1 | CW24: 8246 | CX24: 127 | CY24: 64.92913386
A25: 2016010159 | B25: 朱江 | C25: 61.0 | D25: 6 | E25: 60 | F25: 4 | G25: 84.0 | H25: 2 | I25: 71.0 | J25: 2 | K25: 68.0 | L25: 1 | M25: 62.0 | N25: 4 | O25: 82.0 | P25: 2 | Q25: 76.0 | R25: 3 | S25: 60 | T25: 5 | U25: 79.0 | V25: 1 | W25: 66.0 | X25: 4 | Y25: 42.0 | Z25: 3 | AA25: 80.0 | AB25: 2 | AC25: 60.0 | AD25: 2 | AE25: 80.0 | AF25: 2 | AG25: 66.0 | AH25: 1 | AI25: 62.0 | AJ25: 3 | AK25: 79.0 | AL25: 1.5 | AM25: 76.0 | AN25: 2 | AO25: 66.0 | AP25: 3.5 | AQ25: 66.0 | AR25: 1 | AS25: 76.0 | AT25: 2 | AU25: 61.0 | AV25: 4.5 | AW25: 74.0 | AX25: 4 | AY25: 69.0 | AZ25: 4 | BA25: 68.0 | BB25: 2.5 | BC25: 54.0 | BD25: 4 | BE25: 81.0 | BF25: 1 | BG25: 82.0 | BH25: 2 | BI25: 80.0 | BJ25: 1 | BK25: 49.0 | BL25: 4 | BM25: 70.0 | BN25: 2 | BO25: 62.0 | BP25: 3 | BQ25: 73.0 | BR25: 3 | BS25: 70.0 | BT25: 2.5 | BU25: 47.0 | BV25: 2 | BW25: 60.0 | BX25: 3.5 | BY25: 67.0 | BZ25: 3 | CA25: 79.0 | CB25: 3 | CC25: 90.0 | CD25: 1 | CE25: 92.0 | CF25: 3 | CG25: 80.0 | CH25: 1 | CI25: 90.0 | CJ25: 2 | CK25: 51.0 | CL25: 3 | CM25: 71.0 | CN25: 2 | CO25: 61.0 | CP25: 3 | CQ25: 80.0 | CR25: 3 | CS25: 83 | CT25: 2 | CU25: 70.0 | CV25: 1 | CW25: 8600 | CX25: 127 | CY25: 67.71653543
A26: 2016010160 | B26: 方熹鹤 | C26: 49.0 | D26: 6 | E26: 60 | F26: 4 | G26: 79.0 | H26: 2 | I26: 87.0 | J26: 2 | K26: 73.40 | L26: 1 | M26: 76.0 | N26: 4 | O26: 85 | P26: 2 | Q26: 60 | R26: 3 | S26: 60 | T26: 5 | U26: 87 | V26: 1 | W26: 71 | X26: 4 | Y26: 85 | Z26: 3 | AA26: 81 | AB26: 2 | AC26: 66.0 | AD26: 2 | AE26: 78 | AF26: 2 | AG26: 87 | AH26: 1 | AI26: 81 | AJ26: 3 | AK26: 86 | AL26: 1.5 | AM26: 74 | AN26: 2 | AO26: 71 | AP26: 3.5 | AQ26: 94 | AR26: 1 | AS26: 81 | AT26: 2 | AU26: 60 | AV26: 4.5 | AW26: 79 | AX26: 4 | AY26: 91 | AZ26: 4 | BA26: 73 | BB26: 2.5 | BC26: 49.0 | BD26: 4 | BE26: 87.0 | BF26: 1 | BG26: 78 | BH26: 2 | BI26: 83 | BJ26: 1 | BK26: 60 | BL26: 4 | BM26: 81.0 | BN26: 2 | BO26: 72.0 | BP26: 3 | BQ26: 90.0 | BR26: 3 | BS26: 78 | BT26: 2.5 | BU26: 65 | BV26: 2 | BW26: 71.0 | BX26: 3.5 | BY26: 80.0 | BZ26: 3 | CA26: 91 | CB26: 3 | CC26: 86 | CD26: 1 | CE26: 94 | CF26: 3 | CG26: 80 | CH26: 1 | CI26: 95 | CJ26: 2 | CK26: 80.0 | CL26: 3 | CM26: 97.0 | CN26: 2 | CO26: 74 | CP26: 3 | CQ26: 84 | CR26: 3 | CS26: 89 | CT26: 2 | CU26: 90 | CV26: 1 | CW26: 9523.9 | CX26: 127 | CY26: 74.99133858
A27: 2016010161 | B27: 李梦扬 | C27: 48.0 | D27: 6 | E27: 80.0 | F27: 4 | G27: 77.0 | H27: 2 | I27: 86.0 | J27: 2 | K27: 78.50 | L27: 1 | M27: 73.0 | N27: 4 | O27: 80 | P27: 2 | Q27: 62 | R27: 3 | S27: 72 | T27: 5 | U27: 92 | V27: 1 | W27: 75 | X27: 4 | Y27: 71 | Z27: 3 | AA27: 80 | AB27: 2 | AC27: 82.0 | AD27: 2 | AE27: 86 | AF27: 2 | AG27: 90 | AH27: 1 | AI27: 64 | AJ27: 3 | AK27: 85 | AL27: 1.5 | AM27: 78 | AN27: 2 | AO27: 76 | AP27: 3.5 | AQ27: 92 | AR27: 1 | AS27: 78 | AT27: 2 | AU27: 72 | AV27: 4.5 | AW27: 75 | AX27: 4 | AY27: 90 | AZ27: 4 | BA27: 90 | BB27: 2.5 | BC27: 76.0 | BD27: 4 | BE27: 86.0 | BF27: 1 | BG27: 87 | BH27: 2 | BI27: 88 | BJ27: 1 | BK27: 60 | BL27: 4 | BM27: 88.0 | BN27: 2 | BO27: 95.0 | BP27: 3 | BQ27: 85.0 | BR27: 3 | BS27: 87 | BT27: 2.5 | BU27: 66 | BV27: 2 | BW27: 96.0 | BX27: 3.5 | BY27: 85.0 | BZ27: 3 | CA27: 91 | CB27: 3 | CC27: 82 | CD27: 1 | CE27: 90 | CF27: 3 | CG27: 89 | CH27: 1 | CI27: 87 | CJ27: 2 | CK27: 92.0 | CL27: 3 | CM27: 92.0 | CN27: 2 | CO27: 91 | CP27: 3 | CQ27: 89 | CR27: 3 | CS27: 87 | CT27: 2 | CU27: 92 | CV27: 1 | CW27: 10102.5 | CX27: 127 | CY27: 79.54724409
A28: 2016010163 | B28: 刘改过 | C28: 66.0 | D28: 6 | E28: 70.0 | F28: 4 | G28: 79.0 | H28: 2 | I28: 79.0 | J28: 2 | K28: 78.55 | L28: 1 | M28: 65.0 | N28: 4 | O28: 80 | P28: 2 | Q28: 90 | R28: 3 | S28: 89 | T28: 5 | U28: 87 | V28: 1 | W28: 76 | X28: 4 | Y28: 85 | Z28: 3 | AA28: 81 | AB28: 2 | AC28: 88.0 | AD28: 2 | AE28: 86 | AF28: 2 | AG28: 88 | AH28: 1 | AI28: 82 | AJ28: 3 | AK28: 88 | AL28: 1.5 | AM28: 74 | AN28: 2 | AO28: 77 | AP28: 3.5 | AQ28: 85 | AR28: 1 | AS28: 87 | AT28: 2 | AU28: 87 | AV28: 4.5 | AW28: 87 | AX28: 4 | AY28: 89 | AZ28: 4 | BA28: 87 | BB28: 2.5 | BC28: 86.0 | BD28: 4 | BE28: 84.0 | BF28: 1 | BG28: 90 | BH28: 2 | BI28: 89 | BJ28: 1 | BK28: 70 | BL28: 4 | BM28: 90.0 | BN28: 2 | BO28: 94.0 | BP28: 3 | BQ28: 84.0 | BR28: 3 | BS28: 90 | BT28: 2.5 | BU28: 81 | BV28: 2 | BW28: 95.0 | BX28: 3.5 | BY28: 89.0 | BZ28: 3 | CA28: 87 | CB28: 3 | CC28: 76 | CD28: 1 | CE28: 90 | CF28: 3 | CG28: 87 | CH28: 1 | CI28: 86 | CJ28: 2 | CK28: 93.0 | CL28: 3 | CM28: 91.0 | CN28: 2 | CO28: 88 | CP28: 3 | CQ28: 89 | CR28: 3 | CS28: 91 | CT28: 2 | CU28: 88 | CV28: 1 | CW28: 10622.55 | CX28: 127 | CY28: 83.64212598
A29: 2016010164 | B29: 刘雅雯 | C29: 65.0 | D29: 6 | E29: 60 | F29: 4 | G29: 67.0 | H29: 2 | I29: 81.0 | J29: 2 | K29: 72.60 | L29: 1 | M29: 85.0 | N29: 4 | O29: 72 | P29: 2 | Q29: 60 | R29: 3 | S29: 73 | T29: 5 | U29: 95 | V29: 1 | W29: 75 | X29: 4 | Y29: 81 | Z29: 3 | AA29: 78 | AB29: 2 | AC29: 68.0 | AD29: 2 | AE29: 83 | AF29: 2 | AG29: 82 | AH29: 1 | AI29: 88 | AJ29: 3 | AK29: 87 | AL29: 1.5 | AM29: 70 | AN29: 2 | AO29: 77 | AP29: 3.5 | AQ29: 96 | AR29: 1 | AS29: 72 | AT29: 2 | AU29: 60 | AV29: 4.5 | AW29: 63 | AX29: 4 | AY29: 79 | AZ29: 4 | BA29: 81 | BB29: 2.5 | BC29: 64.0 | BD29: 4 | BE29: 91.0 | BF29: 1 | BG29: 86 | BH29: 2 | BI29: 83 | BJ29: 1 | BK29: 60 | BL29: 4 | BM29: 77.0 | BN29: 2 | BO29: 66.0 | BP29: 3 | BQ29: 89.0 | BR29: 3 | BS29: 86 | BT29: 2.5 | BU29: 60 | BV29: 2 | BW29: 70.0 | BX29: 3.5 | BY29: 83.0 | BZ29: 3 | CA29: 80 | CB29: 3 | CC29: 91 | CD29: 1 | CE29: 93 | CF29: 3 | CG29: 83 | CH29: 1 | CI29: 93 | CJ29: 2 | CK29: 71.0 | CL29: 3 | CM29: 84.0 | CN29: 2 | CO29: 74 | CP29: 3 | CQ29: 85 | CR29: 3 | CS29: 86 | CT29: 2 | CU29: 84 | CV29: 1 | CW29: 9573.1 | CX29: 127 | CY29: 75.37874016
A30: 2016010165 | B30: 尚青 | C30: 63.0 | D30: 6 | E30: 87.0 | F30: 4 | G30: 88.0 | H30: 2 | I30: 82.0 | J30: 2 | K30: 80.60 | L30: 1 | M30: 60.0 | N30: 4 | O30: 82 | P30: 2 | Q30: 79 | R30: 3 | S30: 87 | T30: 5 | U30: 83 | V30: 1 | W30: 73 | X30: 4 | Y30: 84 | Z30: 3 | AA30: 78 | AB30: 2 | AC30: 89.0 | AD30: 2 | AE30: 85 | AF30: 2 | AG30: 88 | AH30: 1 | AI30: 71 | AJ30: 3 | AK30: 85 | AL30: 1.5 | AM30: 77 | AN30: 2 | AO30: 81 | AP30: 3.5 | AQ30: 87 | AR30: 1 | AS30: 80 | AT30: 2 | AU30: 71 | AV30: 4.5 | AW30: 87 | AX30: 4 | AY30: 91 | AZ30: 4 | BA30: 88 | BB30: 2.5 | BC30: 91.0 | BD30: 4 | BE30: 84.0 | BF30: 1 | BG30: 85 | BH30: 2 | BI30: 88 | BJ30: 1 | BK30: 71 | BL30: 4 | BM30: 89.0 | BN30: 2 | BO30: 93.0 | BP30: 3 | BQ30: 89.0 | BR30: 3 | BS30: 85 | BT30: 2.5 | BU30: 77 | BV30: 2 | BW30: 92.0 | BX30: 3.5 | BY30: 89.0 | BZ30: 3 | CA30: 87 | CB30: 3 | CC30: 87 | CD30: 1 | CE30: 90 | CF30: 3 | CG30: 81 | CH30: 1 | CI30: 91 | CJ30: 2 | CK30: 90.0 | CL30: 3 | CM30: 90.0 | CN30: 2 | CO30: 91 | CP30: 3 | CQ30: 89 | CR30: 3 | CS30: 87 | CT30: 2 | CU30: 88 | CV30: 1 | CW30: 10520.6 | CX30: 127 | CY30: 82.83937008
A31: 2016010166 | B31: 汤明珍 | C31: 66.0 | D31: 6 | E31: 80.0 | F31: 4 | G31: 79.0 | H31: 2 | I31: 84.0 | J31: 2 | K31: 81.90 | L31: 1 | M31: 70.0 | N31: 4 | O31: 83 | P31: 2 | Q31: 73 | R31: 3 | S31: 73 | T31: 5 | U31: 89 | V31: 1 | W31: 76 | X31: 4 | Y31: 65 | Z31: 3 | AA31: 84 | AB31: 2 | AC31: 77.0 | AD31: 2 | AE31: 76 | AF31: 2 | AG31: 90 | AH31: 1 | AI31: 65 | AJ31: 3 | AK31: 85 | AL31: 1.5 | AM31: 84 | AN31: 2 | AO31: 80 | AP31: 3.5 | AQ31: 90 | AR31: 1 | AS31: 84 | AT31: 2 | AU31: 87 | AV31: 4.5 | AW31: 78 | AX31: 4 | AY31: 82 | AZ31: 4 | BA31: 91 | BB31: 2.5 | BC31: 78.0 | BD31: 4 | BE31: 90.0 | BF31: 1 | BG31: 87 | BH31: 2 | BI31: 87 | BJ31: 1 | BK31: 75 | BL31: 4 | BM31: 88.0 | BN31: 2 | BO31: 97.0 | BP31: 3 | BQ31: 90.0 | BR31: 3 | BS31: 87 | BT31: 2.5 | BU31: 73 | BV31: 2 | BW31: 92.0 | BX31: 3.5 | BY31: 83.0 | BZ31: 3 | CA31: 84 | CB31: 3 | CC31: 88 | CD31: 1 | CE31: 93 | CF31: 3 | CG31: 88 | CH31: 1 | CI31: 87 | CJ31: 2 | CK31: 76.0 | CL31: 3 | CM31: 90.0 | CN31: 2 | CO31: 91 | CP31: 3 | CQ31: 96 | CR31: 3 | CS31: 84 | CT31: 2 | CU31: 92 | CV31: 1 | CW31: 10337.9 | CX31: 127 | CY31: 81.4007874
A32: 2016010167 | B32: 涂茁炜 | C32: 53.0 | D32: 6 | E32: 66.0 | F32: 4 | G32: 76.0 | H32: 2 | I32: 78.0 | J32: 2 | K32: 77.10 | L32: 1 | M32: 85.0 | N32: 4 | O32: 82 | P32: 2 | Q32: 66 | R32: 3 | S32: 64 | T32: 5 | U32: 74 | V32: 1 | W32: 84 | X32: 4 | Y32: 70 | Z32: 3 | AA32: 86 | AB32: 2 | AC32: 72.0 | AD32: 2 | AE32: 86 | AF32: 2 | AG32: 93 | AH32: 1 | AI32: 77 | AJ32: 3 | AK32: 84 | AL32: 1.5 | AM32: 80 | AN32: 2 | AO32: 63 | AP32: 3.5 | AQ32: 75 | AR32: 1 | AS32: 80 | AT32: 2 | AU32: 66 | AV32: 4.5 | AW32: 76 | AX32: 4 | AY32: 76 | AZ32: 4 | BA32: 83 | BB32: 2.5 | BC32: 72.0 | BD32: 4 | BE32: 91.0 | BF32: 1 | BG32: 73 | BH32: 2 | BI32: 85 | BJ32: 1 | BK32: 60 | BL32: 4 | BM32: 78.0 | BN32: 2 | BO32: 86.0 | BP32: 3 | BQ32: 82.0 | BR32: 3 | BS32: 73 | BT32: 2.5 | BU32: 63 | BV32: 2 | BW32: 76.0 | BX32: 3.5 | BY32: 81.0 | BZ32: 3 | CA32: 84 | CB32: 3 | CC32: 76 | CD32: 1 | CE32: 89 | CF32: 3 | CG32: 76 | CH32: 1 | CI32: 93 | CJ32: 2 | CK32: 86.0 | CL32: 3 | CM32: 93.0 | CN32: 2 | CO32: 80 | CP32: 3 | CQ32: 89 | CR32: 3 | CS32: 84 | CT32: 2 | CU32: 83 | CV32: 1 | CW32: 9661.6 | CX32: 127 | CY32: 76.07559055
A33: 2016010168 | B33: 许家宁 | C33: 60.0 | D33: 6 | E33: 60 | F33: 4 | G33: 79.0 | H33: 2 | I33: 83.0 | J33: 2 | K33: 72.50 | L33: 1 | M33: 69.0 | N33: 4 | O33: 74 | P33: 2 | Q33: 72 | R33: 3 | S33: 72 | T33: 5 | U33: 88 | V33: 1 | W33: 74 | X33: 4 | Y33: 70 | Z33: 3 | AA33: 73 | AB33: 2 | AC33: 70.0 | AD33: 2 | AE33: 73 | AF33: 2 | AG33: 93 | AH33: 1 | AI33: 76 | AJ33: 3 | AK33: 85 | AL33: 1.5 | AM33: 62 | AN33: 2 | AO33: 74 | AP33: 3.5 | AQ33: 84 | AR33: 1 | AS33: 80 | AT33: 2 | AU33: 63 | AV33: 4.5 | AW33: 66 | AX33: 4 | AY33: 85 | AZ33: 4 | BA33: 76 | BB33: 2.5 | BC33: 70.0 | BD33: 4 | BE33: 86.0 | BF33: 1 | BG33: 79 | BH33: 2 | BI33: 85 | BJ33: 1 | BK33: 60 | BL33: 4 | BM33: 80.0 | BN33: 2 | BO33: 78.0 | BP33: 3 | BQ33: 88.0 | BR33: 3 | BS33: 79 | BT33: 2.5 | BU33: 60 | BV33: 2 | BW33: 79.0 | BX33: 3.5 | BY33: 80.0 | BZ33: 3 | CA33: 81 | CB33: 3 | CC33: 90 | CD33: 1 | CE33: 88 | CF33: 3 | CG33: 82 | CH33: 1 | CI33: 87 | CJ33: 2 | CK33: 72.0 | CL33: 3 | CM33: 89.0 | CN33: 2 | CO33: 76 | CP33: 3 | CQ33: 87 | CR33: 3 | CS33: 82 | CT33: 2 | CU33: 85 | CV33: 1 | CW33: 9501.5 | CX33: 127 | CY33: 74.81496063
A34: 2016010169 | B34: 张诗卿 | C34: 57.0 | D34: 6 | E34: 60 | F34: 4 | G34: 80.0 | H34: 2 | I34: 78.0 | J34: 2 | K34: 74.55 | L34: 1 | M34: 80.0 | N34: 4 | O34: 68 | P34: 2 | Q34: 64 | R34: 3 | S34: 81 | T34: 5 | U34: 87 | V34: 1 | W34: 66 | X34: 4 | Y34: 85 | Z34: 3 | AA34: 86 | AB34: 2 | AC34: 76.0 | AD34: 2 | AE34: 71 | AF34: 2 | AG34: 79 | AH34: 1 | AI34: 84 | AJ34: 3 | AK34: 84 | AL34: 1.5 | AM34: 70 | AN34: 2 | AO34: 83 | AP34: 3.5 | AQ34: 84 | AR34: 1 | AS34: 82 | AT34: 2 | AU34: 70 | AV34: 4.5 | AW34: 65 | AX34: 4 | AY34: 83 | AZ34: 4 | BA34: 80 | BB34: 2.5 | BC34: 78.0 | BD34: 4 | BE34: 87.0 | BF34: 1 | BG34: 83 | BH34: 2 | BI34: 82 | BJ34: 1 | BK34: 65 | BL34: 4 | BM34: 74.0 | BN34: 2 | BO34: 66.0 | BP34: 3 | BQ34: 91.0 | BR34: 3 | BS34: 83 | BT34: 2.5 | BU34: 67 | BV34: 2 | BW34: 77.0 | BX34: 3.5 | BY34: 78.0 | BZ34: 3 | CA34: 81 | CB34: 3 | CC34: 88 | CD34: 1 | CE34: 91 | CF34: 3 | CG34: 83 | CH34: 1 | CI34: 91 | CJ34: 2 | CK34: 63.0 | CL34: 3 | CM34: 83.0 | CN34: 2 | CO34: 68 | CP34: 3 | CQ34: 87 | CR34: 3 | CS34: 82 | CT34: 2 | CU34: 78 | CV34: 1 | CW34: 9642.05 | CX34: 127 | CY34: 75.92165354
A35: 2016010171 | B35: 胡啸林 | C35: 74.0 | D35: 6 | E35: 66.0 | F35: 4 | G35: 77.0 | H35: 2 | I35: 81.0 | J35: 2 | K35: 76.50 | L35: 1 | M35: 70.0 | N35: 4 | O35: 82 | P35: 2 | Q35: 87 | R35: 3 | S35: 96 | T35: 5 | U35: 70 | V35: 1 | W35: 74 | X35: 4 | Y35: 64 | Z35: 3 | AA35: 88 | AB35: 2 | AC35: - | AD35: 2 | AE35: 79 | AF35: 2 | AG35: 61 | AH35: 1 | AI35: 74 | AJ35: 3 | AK35: - | AL35: 1.5 | AM35: 45 | AN35: 2 | AO35: 77 | AP35: 3.5 | AQ35: 71 | AR35: 1 | AS35: 82 | AT35: 2 | AU35: 92 | AV35: 4.5 | AW35: 70 | AX35: 4 | AY35: 83 | AZ35: 4 | BA35: 85 | BB35: 2.5 | BC35: 80.0 | BD35: 4 | BE35: 87.0 | BF35: 1 | BG35: 80 | BH35: 2 | BI35: 71 | BJ35: 1 | BK35: 76 | BL35: 4 | BM35: 70.0 | BN35: 2 | BO35: 70.0 | BP35: 3 | BQ35: 81.0 | BR35: 3 | BS35: 80 | BT35: 2.5 | BU35: 69 | BV35: 2 | BW35: 66.0 | BX35: 3.5 | BY35: 63.0 | BZ35: 3 | CA35: 84 | CB35: 3 | CC35: 79 | CD35: 1 | CE35: 72 | CF35: 3 | CG35: 81 | CH35: 1 | CI35: 83 | CJ35: 2 | CK35: 75.0 | CL35: 3 | CM35: 79.0 | CN35: 2 | CO35: 63 | CP35: 3 | CQ35: 70 | CR35: 3 | CS35: 60 | CT35: 2 | CU35: 68 | CV35: 1 | CW35: =C35*D35+E35*F35+G35*H35+I35*J35+K35*L35+M35*N35+O35*P35+Q35*R35+S35*T35+U35*V35+W35*X35+Y35*Z35+AA35*AB35+AE35*AF35+AG35*AH35+AI35*AJ35+AM35*AN35+AO35*AP35+AQ35*AR35+AS35*AT35+AU35*AV35+AW35*AX35+AY35*AZ35+BA35*BB35+BC35*BD35+BE35*BF35+BG35*BH35+BI35*BJ35+BK35*BL35+BM35*BN35+BO35*BP35+BQ35*BR35+BS35*BT35+BU35*BV35+BW35*BX35+BY35*BZ35+CA35*CB35+CC35*CD35+CE35*CF35+CG35*CH35+CI35*CJ35+CK35*CL35+CM35*CN35+CO35*CP35+CQ35*CR35+CS35*CT35+CU35*CV35 -> 9350.5 | CX35: =D35+F35+H35+J35+L35+N35+P35+R35+T35+V35+X35+Z35+AB35+AD35+AF35+AH35+AJ35+AL35+AN35+AP35+AR35+AT35+AV35+AX35+AZ35+BB35+BD35+BF35+BH35+BJ35+BL35+BN35+BP35+BR35+BT35+BV35+BX35+BZ35+CB35+CD35+CF35+CH35+CJ35+CL35+CN35+CP35+CR35+CT35+CV35-2-1.5 -> 123.5 | CY35: 75.71255061
A36: 2016010172 | B36: 李牛江杰 | C36: 66.0 | D36: 6 | E36: 76.0 | F36: 4 | G36: 77.0 | H36: 2 | I36: 79.0 | J36: 2 | K36: 76.10 | L36: 1 | M36: 77.0 | N36: 4 | O36: 71 | P36: 2 | Q36: 63 | R36: 3 | S36: 61 | T36: 5 | U36: 73 | V36: 1 | W36: 73 | X36: 4 | Y36: 66 | Z36: 3 | AA36: 77 | AB36: 2 | AC36: 68.0 | AD36: 2 | AE36: 65 | AF36: 2 | AG36: 84 | AH36: 1 | AI36: 48 | AJ36: 3 | AK36: 86 | AL36: 1.5 | AM36: 76 | AN36: 2 | AO36: 66 | AP36: 3.5 | AQ36: 78 | AR36: 1 | AS36: 84 | AT36: 2 | AU36: 60 | AV36: 4.5 | AW36: 69 | AX36: 4 | AY36: 81 | AZ36: 4 | BA36: 72 | BB36: 2.5 | BC36: 60.0 | BD36: 4 | BE36: 81.0 | BF36: 1 | BG36: 74 | BH36: 2 | BI36: 80 | BJ36: 1 | BK36: 60 | BL36: 4 | BM36: 71.0 | BN36: 2 | BO36: 66.0 | BP36: 3 | BQ36: 75.0 | BR36: 3 | BS36: 74 | BT36: 2.5 | BU36: 63 | BV36: 2 | BW36: 73.0 | BX36: 3.5 | BY36: 67.0 | BZ36: 3 | CA36: 79 | CB36: 3 | CC36: 82 | CD36: 1 | CE36: 91 | CF36: 3 | CG36: 77 | CH36: 1 | CI36: 97 | CJ36: 2 | CK36: 76.0 | CL36: 3 | CM36: 84.0 | CN36: 2 | CO36: 73 | CP36: 3 | CQ36: 82 | CR36: 3 | CS36: 82 | CT36: 2 | CU36: 80 | CV36: 1 | CW36: 9140.6 | CX36: 127 | CY36: 71.97322835
A37: 2016010173 | B37: 李志萌 | C37: 60.0 | D37: 6 | E37: 78.0 | F37: 4 | G37: 80.0 | H37: 2 | I37: 80.0 | J37: 2 | K37: 68.00 | L37: 1 | M37: 61.0 | N37: 4 | O37: 81 | P37: 2 | Q37: 68 | R37: 3 | S37: 75 | T37: 5 | U37: 87 | V37: 1 | W37: 60 | X37: 4 | Y37: 60 | Z37: 3 | AA37: 80 | AB37: 2 | AC37: 74.0 | AD37: 2 | AE37: 60 | AF37: 2 | AG37: 82 | AH37: 1 | AI37: 69 | AJ37: 3 | AK37: 84 | AL37: 1.5 | AM37: 66 | AN37: 2 | AO37: 73 | AP37: 3.5 | AQ37: 83 | AR37: 1 | AS37: 77 | AT37: 2 | AU37: 63 | AV37: 4.5 | AW37: 64 | AX37: 4 | AY37: 73 | AZ37: 4 | BA37: 80 | BB37: 2.5 | BC37: 66.0 | BD37: 4 | BE37: 82.0 | BF37: 1 | BG37: 75 | BH37: 2 | BI37: 83 | BJ37: 1 | BK37: 60 | BL37: 4 | BM37: 77.0 | BN37: 2 | BO37: 80.0 | BP37: 3 | BQ37: 74.0 | BR37: 3 | BS37: 75 | BT37: 2.5 | BU37: 60 | BV37: 2 | BW37: 75.0 | BX37: 3.5 | BY37: 65.0 | BZ37: 3 | CA37: 79 | CB37: 3 | CC37: 78 | CD37: 1 | CE37: 86 | CF37: 3 | CG37: 87 | CH37: 1 | CI37: 91 | CJ37: 2 | CK37: 74.0 | CL37: 3 | CM37: 87.0 | CN37: 2 | CO37: 80 | CP37: 3 | CQ37: 83 | CR37: 3 | CS37: 81 | CT37: 2 | CU37: 64 | CV37: 1 | CW37: 9204 | CX37: 127 | CY37: 72.47244094
A38: 2016010174 | B38: 刘靖 | C38: 68.0 | D38: 6 | E38: 78.0 | F38: 4 | G38: 82.0 | H38: 2 | I38: 85.0 | J38: 2 | K38: 80.73 | L38: 1 | M38: 74.0 | N38: 4 | O38: 86 | P38: 2 | Q38: 82 | R38: 3 | S38: 85 | T38: 5 | U38: 77 | V38: 1 | W38: 82 | X38: 4 | Y38: 74 | Z38: 3 | AA38: 87 | AB38: 2 | AC38: 76.0 | AD38: 2 | AE38: 92 | AF38: 2 | AG38: 80 | AH38: 1 | AI38: 81 | AJ38: 3 | AK38: 82 | AL38: 1.5 | AM38: 78 | AN38: 2 | AO38: 86 | AP38: 3.5 | AQ38: 81 | AR38: 1 | AS38: 84 | AT38: 2 | AU38: 80 | AV38: 4.5 | AW38: 83 | AX38: 4 | AY38: 97 | AZ38: 4 | BA38: 87 | BB38: 2.5 | BC38: 91.0 | BD38: 4 | BE38: 85.0 | BF38: 1 | BG38: 85 | BH38: 2 | BI38: 84 | BJ38: 1 | BK38: 64 | BL38: 4 | BM38: 81.0 | BN38: 2 | BO38: 90.0 | BP38: 3 | BQ38: 93.0 | BR38: 3 | BS38: 85 | BT38: 2.5 | BU38: 84 | BV38: 2 | BW38: 94.0 | BX38: 3.5 | BY38: 79.0 | BZ38: 3 | CA38: 86 | CB38: 3 | CC38: 83 | CD38: 1 | CE38: 90 | CF38: 3 | CG38: 88 | CH38: 1 | CI38: 87 | CJ38: 2 | CK38: 77.0 | CL38: 3 | CM38: 92.0 | CN38: 2 | CO38: 74 | CP38: 3 | CQ38: 90 | CR38: 3 | CS38: 86 | CT38: 2 | CU38: 88 | CV38: 1 | CW38: 10516.73 | CX38: 127 | CY38: 82.80889764
A39: 2016010175 | B39: 刘子瑞 | C39: 62.0 | D39: 6 | E39: 60 | F39: 4 | G39: 81.0 | H39: 2 | I39: 80.0 | J39: 2 | K39: 69.30 | L39: 1 | M39: 64.0 | N39: 4 | O39: 72 | P39: 2 | Q39: 65 | R39: 3 | S39: 46 | T39: 5 | U39: 90 | V39: 1 | W39: 68 | X39: 4 | Y39: 74 | Z39: 3 | AA39: 80 | AB39: 2 | AC39: 62.0 | AD39: 2 | AE39: 82 | AF39: 2 | AG39: 92 | AH39: 1 | AI39: 63 | AJ39: 3 | AK39: 86 | AL39: 1.5 | AM39: 73 | AN39: 2 | AO39: 75 | AP39: 3.5 | AQ39: 85 | AR39: 1 | AS39: 81 | AT39: 2 | AU39: 60 | AV39: 4.5 | AW39: 61 | AX39: 4 | AY39: 73 | AZ39: 4 | BA39: 85 | BB39: 2.5 | BC39: 60.0 | BD39: 4 | BE39: 82.0 | BF39: 1 | BG39: 75 | BH39: 2 | BI39: 83 | BJ39: 1 | BK39: 60 | BL39: 4 | BM39: 72.0 | BN39: 2 | BO39: 83.0 | BP39: 3 | BQ39: 77.0 | BR39: 3 | BS39: 75 | BT39: 2.5 | BU39: 75 | BV39: 2 | BW39: 74.0 | BX39: 3.5 | BY39: 61.0 | BZ39: 3 | CA39: 70 | CB39: 3 | CC39: 89 | CD39: 1 | CE39: 86 | CF39: 3 | CG39: 66 | CH39: 1 | CI39: 85 | CJ39: 2 | CK39: 79.0 | CL39: 3 | CM39: 88.0 | CN39: 2 | CO39: 63 | CP39: 3 | CQ39: 89 | CR39: 3 | CS39: 79 | CT39: 2 | CU39: 72 | CV39: 1 | CW39: 9034.8 | CX39: 127 | CY39: 71.14015748
A40: 2016010176 | B40: 马海超 | C40: 61.0 | D40: 6 | E40: 82.0 | F40: 4 | G40: 77.0 | H40: 2 | I40: 82.0 | J40: 2 | K40: 76.20 | L40: 1 | M40: 70.0 | N40: 4 | O40: 78 | P40: 2 | Q40: 62 | R40: 3 | S40: 63 | T40: 5 | U40: 77 | V40: 1 | W40: 66 | X40: 4 | Y40: 60 | Z40: 3 | AA40: 82 | AB40: 2 | AC40: 63.0 | AD40: 2 | AE40: 64 | AF40: 2 | AG40: 81 | AH40: 1 | AI40: 74 | AJ40: 3 | AK40: 82 | AL40: 1.5 | AM40: 66 | AN40: 2 | AO40: 65 | AP40: 3.5 | AQ40: 90 | AR40: 1 | AS40: 75 | AT40: 2 | AU40: 60 | AV40: 4.5 | AW40: 67 | AX40: 4 | AY40: 83 | AZ40: 4 | BA40: 76 | BB40: 2.5 | BC40: 55.0 | BD40: 4 | BE40: 85.0 | BF40: 1 | BG40: 72 | BH40: 2 | BI40: 83 | BJ40: 1 | BK40: 43 | BL40: 4 | BM40: 79.0 | BN40: 2 | BO40: 70.0 | BP40: 3 | BQ40: 86.0 | BR40: 3 | BS40: 72 | BT40: 2.5 | BU40: 60 | BV40: 2 | BW40: 60 | BX40: 3.5 | BY40: 64.0 | BZ40: 3 | CA40: 81 | CB40: 3 | CC40: 91 | CD40: 1 | CE40: 92 | CF40: 3 | CG40: 83 | CH40: 1 | CI40: 89 | CJ40: 2 | CK40: 64.0 | CL40: 3 | CM40: 88.0 | CN40: 2 | CO40: 63 | CP40: 3 | CQ40: 70 | CR40: 3 | CS40: 85 | CT40: 2 | CU40: 83 | CV40: 1 | CW40: 8972.7 | CX40: 127 | CY40: 70.6511811
A41: 2016010177 | B41: 马哲宇 | C41: 57.0 | D41: 6 | E41: 87.0 | F41: 4 | G41: 87.0 | H41: 2 | I41: 81.0 | J41: 2 | K41: 77.00 | L41: 1 | M41: 63.0 | N41: 4 | O41: 78 | P41: 2 | Q41: 70 | R41: 3 | S41: 60 | T41: 5 | U41: 83 | V41: 1 | W41: 60 | X41: 4 | Y41: 70 | Z41: 3 | AA41: 80 | AB41: 2 | AC41: 68.0 | AD41: 2 | AE41: 67 | AF41: 2 | AG41: 78 | AH41: 1 | AI41: 84 | AJ41: 3 | AK41: 84 | AL41: 1.5 | AM41: 63 | AN41: 2 | AO41: 80 | AP41: 3.5 | AQ41: 76 | AR41: 1 | AS41: 74 | AT41: 2 | AU41: 72 | AV41: 4.5 | AW41: 60 | AX41: 4 | AY41: 84 | AZ41: 4 | BA41: 82 | BB41: 2.5 | BC41: 72.0 | BD41: 4 | BE41: 86.0 | BF41: 1 | BG41: 76 | BH41: 2 | BI41: 86 | BJ41: 1 | BK41: 60 | BL41: 4 | BM41: 81.0 | BN41: 2 | BO41: 86.0 | BP41: 3 | BQ41: 89.0 | BR41: 3 | BS41: 76 | BT41: 2.5 | BU41: 72 | BV41: 2 | BW41: 82.0 | BX41: 3.5 | BY41: 76.0 | BZ41: 3 | CA41: 85 | CB41: 3 | CC41: 93 | CD41: 1 | CE41: 93 | CF41: 3 | CG41: 81 | CH41: 1 | CI41: 90 | CJ41: 2 | CK41: 81.0 | CL41: 3 | CM41: 94.0 | CN41: 2 | CO41: 76 | CP41: 3 | CQ41: 81 | CR41: 3 | CS41: 94 | CT41: 2 | CU41: 81 | CV41: 1 | CW41: 9622 | CX41: 127 | CY41: 75.76377953
A42: 2016010178 | B42: 欧邦清 | C42: 55.0 | D42: 6 | E42: 60 | F42: 4 | G42: 80.0 | H42: 2 | I42: 75.0 | J42: 2 | K42: 70.40 | L42: 1 | M42: 73.0 | N42: 4 | O42: 72 | P42: 2 | Q42: 71 | R42: 3 | S42: 62 | T42: 5 | U42: 80 | V42: 1 | W42: 60 | X42: 4 | Y42: 45 | Z42: 3 | AA42: 81 | AB42: 2 | AC42: 60.0 | AD42: 2 | AE42: 64 | AF42: 2 | AG42: 80 | AH42: 1 | AI42: 67 | AJ42: 3 | AK42: 83 | AL42: 1.5 | AM42: 64 | AN42: 2 | AO42: 61 | AP42: 3.5 | AQ42: 79 | AR42: 1 | AS42: 84 | AT42: 2 | AU42: 62 | AV42: 4.5 | AW42: 68 | AX42: 4 | AY42: 78 | AZ42: 4 | BA42: 76 | BB42: 2.5 | BC42: 74.0 | BD42: 4 | BE42: 81.0 | BF42: 1 | BG42: 70 | BH42: 2 | BI42: 86 | BJ42: 1 | BK42: 60 | BL42: 4 | BM42: 81.0 | BN42: 2 | BO42: 71.0 | BP42: 3 | BQ42: 85.0 | BR42: 3 | BS42: 70 | BT42: 2.5 | BU42: 77 | BV42: 2 | BW42: 82.0 | BX42: 3.5 | BY42: 81.0 | BZ42: 3 | CA42: 82 | CB42: 3 | CC42: 79 | CD42: 1 | CE42: 82 | CF42: 3 | CG42: 78 | CH42: 1 | CI42: 86 | CJ42: 2 | CK42: 62.0 | CL42: 3 | CM42: 88.0 | CN42: 2 | CO42: 83 | CP42: 3 | CQ42: 85 | CR42: 3 | CS42: 80 | CT42: 2 | CU42: 83 | CV42: 1 | CW42: 9083.4 | CX42: 127 | CY42: 71.52283465
A43: 2016010179 | B43: 齐朝旭 | C43: 75.0 | D43: 6 | E43: 67.0 | F43: 4 | G43: 83.0 | H43: 2 | I43: 86.0 | J43: 2 | K43: 83.45 | L43: 1 | M43: 78.0 | N43: 4 | O43: 80 | P43: 2 | Q43: 88 | R43: 3 | S43: 76 | T43: 5 | U43: 86 | V43: 1 | W43: 78 | X43: 4 | Y43: 72 | Z43: 3 | AA43: 73 | AB43: 2 | AC43: 62.0 | AD43: 2 | AE43: 70 | AF43: 2 | AG43: 88 | AH43: 1 | AI43: 64 | AJ43: 3 | AK43: 84 | AL43: 1.5 | AM43: 72 | AN43: 2 | AO43: 62 | AP43: 3.5 | AQ43: 90 | AR43: 1 | AS43: 75 | AT43: 2 | AU43: 94 | AV43: 4.5 | AW43: 70 | AX43: 4 | AY43: 76 | AZ43: 4 | BA43: 77 | BB43: 2.5 | BC43: 61.0 | BD43: 4 | BE43: 84.0 | BF43: 1 | BG43: 75 | BH43: 2 | BI43: 85 | BJ43: 1 | BK43: 67 | BL43: 4 | BM43: 84.0 | BN43: 2 | BO43: 86.0 | BP43: 3 | BQ43: 79.0 | BR43: 3 | BS43: 75 | BT43: 2.5 | BU43: 60 | BV43: 2 | BW43: 78.0 | BX43: 3.5 | BY43: 88.0 | BZ43: 3 | CA43: 83 | CB43: 3 | CC43: 86 | CD43: 1 | CE43: 87 | CF43: 3 | CG43: 86 | CH43: 1 | CI43: 93 | CJ43: 2 | CK43: 76.0 | CL43: 3 | CM43: 86.0 | CN43: 2 | CO43: 82 | CP43: 3 | CQ43: 83 | CR43: 3 | CS43: 93 | CT43: 2 | CU43: 82 | CV43: 1 | CW43: 9855.45 | CX43: 127 | CY43: 77.6019685
A44: 2016010180 | B44: 撒世东 | C44: 60.0 | D44: 6 | E44: 60 | F44: 4 | G44: 87.0 | H44: 2 | I44: 82.0 | J44: 2 | K44: 72.90 | L44: 1 | M44: 62.0 | N44: 4 | O44: 75 | P44: 2 | Q44: 62 | R44: 3 | S44: 56 | T44: 5 | U44: 82 | V44: 1 | W44: 66 | X44: 4 | Y44: 70 | Z44: 3 | AA44: 86 | AB44: 2 | AC44: 64.0 | AD44: 2 | AE44: 61 | AF44: 2 | AG44: 89 | AH44: 1 | AI44: 85 | AJ44: 3 | AK44: 79 | AL44: 1.5 | AM44: 65 | AN44: 2 | AO44: 70 | AP44: 3.5 | AQ44: 87 | AR44: 1 | AS44: 80 | AT44: 2 | AU44: 65 | AV44: 4.5 | AW44: 67 | AX44: 4 | AY44: 73 | AZ44: 4 | BA44: 78 | BB44: 2.5 | BC44: 68.0 | BD44: 4 | BE44: 82.0 | BF44: 1 | BG44: 80 | BH44: 2 | BI44: 83 | BJ44: 1 | BK44: 60 | BL44: 4 | BM44: 78.0 | BN44: 2 | BO44: 75.0 | BP44: 3 | BQ44: 83.0 | BR44: 3 | BS44: 80 | BT44: 2.5 | BU44: 64 | BV44: 2 | BW44: 73.0 | BX44: 3.5 | BY44: 85.0 | BZ44: 3 | CA44: 81 | CB44: 3 | CC44: 82 | CD44: 1 | CE44: 79 | CF44: 3 | CG44: 80 | CH44: 1 | CI44: 96 | CJ44: 2 | CK44: 60.0 | CL44: 3 | CM44: 65.0 | CN44: 2 | CO44: 75 | CP44: 3 | CQ44: 78 | CR44: 3 | CS44: 89 | CT44: 2 | CU44: 80 | CV44: 1 | CW44: 9151.4 | CX44: 127 | CY44: 72.05826772
A45: 2016010181 | B45: 滕桂鹏 | C45: 52.0 | D45: 6 | E45: 59.0 | F45: 4 | G45: 76.0 | H45: 2 | I45: 83.0 | J45: 2 | K45: 72.00 | L45: 1 | M45: 65.0 | N45: 4 | O45: 73 | P45: 2 | Q45: 67 | R45: 3 | S45: 60 | T45: 5 | U45: 83 | V45: 1 | W45: 63 | X45: 4 | Y45: 57 | Z45: 3 | AA45: 78 | AB45: 2 | AC45: 63.0 | AD45: 2 | AE45: 61 | AF45: 2 | AG45: 83 | AH45: 1 | AI45: 82 | AJ45: 3 | AK45: 82 | AL45: 1.5 | AM45: 64 | AN45: 2 | AO45: 83 | AP45: 3.5 | AQ45: 80 | AR45: 1 | AS45: 75 | AT45: 2 | AU45: 60 | AV45: 4.5 | AW45: 65 | AX45: 4 | AY45: 74 | AZ45: 4 | BA45: 72 | BB45: 2.5 | BC45: 69.0 | BD45: 4 | BE45: 79.0 | BF45: 1 | BG45: 72 | BH45: 2 | BI45: 83 | BJ45: 1 | BK45: 66 | BL45: 4 | BM45: 81.0 | BN45: 2 | BO45: 78.0 | BP45: 3 | BQ45: 82.0 | BR45: 3 | BS45: 72 | BT45: 2.5 | BU45: 69 | BV45: 2 | BW45: 77.0 | BX45: 3.5 | BY45: 75.0 | BZ45: 3 | CA45: 74 | CB45: 3 | CC45: 73 | CD45: 1 | CE45: 85 | CF45: 3 | CG45: 72 | CH45: 1 | CI45: 96 | CJ45: 2 | CK45: 75.0 | CL45: 3 | CM45: 77.0 | CN45: 2 | CO45: 76 | CP45: 3 | CQ45: 81 | CR45: 3 | CS45: 80 | CT45: 2 | CU45: 74 | CV45: 1 | CW45: 9060 | CX45: 127 | CY45: 71.33858268
A46: 2016010183 | B46: 王嘉昕 | C46: 68.0 | D46: 6 | E46: 63.0 | F46: 4 | G46: 86.0 | H46: 2 | I46: 83.0 | J46: 2 | K46: 76.40 | L46: 1 | M46: 61.0 | N46: 4 | O46: 81 | P46: 2 | Q46: 67 | R46: 3 | S46: 50 | T46: 5 | U46: 84 | V46: 1 | W46: 64 | X46: 4 | Y46: 63 | Z46: 3 | AA46: 84 | AB46: 2 | AC46: 78.0 | AD46: 2 | AE46: 71 | AF46: 2 | AG46: 82 | AH46: 1 | AI46: 53 | AJ46: 3 | AK46: 85 | AL46: 1.5 | AM46: 70 | AN46: 2 | AO46: 62 | AP46: 3.5 | AQ46: 66 | AR46: 1 | AS46: 85 | AT46: 2 | AU46: 66 | AV46: 4.5 | AW46: 86 | AX46: 4 | AY46: 92 | AZ46: 4 | BA46: 81 | BB46: 2.5 | BC46: 54.0 | BD46: 4 | BE46: 85.0 | BF46: 1 | BG46: 81 | BH46: 2 | BI46: 82 | BJ46: 1 | BK46: 62 | BL46: 4 | BM46: 81.0 | BN46: 2 | BO46: 90.0 | BP46: 3 | BQ46: 90.0 | BR46: 3 | BS46: 81 | BT46: 2.5 | BU46: 70 | BV46: 2 | BW46: 86.0 | BX46: 3.5 | BY46: 87.0 | BZ46: 3 | CA46: 82 | CB46: 3 | CC46: 92 | CD46: 1 | CE46: 88 | CF46: 3 | CG46: 82 | CH46: 1 | CI46: 86 | CJ46: 2 | CK46: 88.0 | CL46: 3 | CM46: 86.0 | CN46: 2 | CO46: 92 | CP46: 3 | CQ46: 89 | CR46: 3 | CS46: 89 | CT46: 2 | CU46: 90 | CV46: 1 | CW46: 9601.9 | CX46: 127 | CY46: 75.60551181
A47: 2016010184 | B47: 王永铎 | C47: 39.0 | D47: 6 | E47: 64.0 | F47: 4 | G47: 76.0 | H47: 2 | I47: 80.0 | J47: 2 | K47: 68.73 | L47: 1 | M47: 61.0 | N47: 4 | O47: 75 | P47: 2 | Q47: 48 | R47: 3 | S47: 45 | T47: 5 | U47: 84 | V47: 1 | W47: 50 | X47: 4 | Y47: 72 | Z47: 3 | AA47: 82 | AB47: 2 | AC47: 68.0 | AD47: 2 | AE47: 60 | AF47: 2 | AG47: 80 | AH47: 1 | AI47: 66 | AJ47: 3 | AK47: 84 | AL47: 1.5 | AM47: 33 | AN47: 2 | AO47: 44 | AP47: 3.5 | AQ47: 85 | AR47: 1 | AS47: 72 | AT47: 2 | AU47: 60 | AV47: 4.5 | AW47: 57 | AX47: 4 | AY47: 73 | AZ47: 4 | BA47: 74 | BB47: 2.5 | BC47: 54.0 | BD47: 4 | BE47: 86.0 | BF47: 1 | BG47: 75 | BH47: 2 | BI47: 79 | BJ47: 1 | BK47: 50 | BL47: 4 | BM47: 72.0 | BN47: 2 | BO47: 74.0 | BP47: 3 | BQ47: 78.0 | BR47: 3 | BS47: 75 | BT47: 2.5 | BU47: 63 | BV47: 2 | BW47: 60.0 | BX47: 3.5 | BY47: 76.0 | BZ47: 3 | CA47: 82 | CB47: 3 | CC47: 81 | CD47: 1 | CE47: 89 | CF47: 3 | CG47: 86 | CH47: 1 | CI47: 87 | CJ47: 2 | CK47: 75.0 | CL47: 3 | CM47: 70.0 | CN47: 2 | CO47: 75 | CP47: 3 | CQ47: 87 | CR47: 3 | CS47: 77 | CT47: 2 | CU47: 68 | CV47: 1 | CW47: 8391.23 | CX47: 127 | CY47: 66.07267717
A48: 2016010185 | B48: 王玉琨 | C48: 68.0 | D48: 6 | E48: 80.0 | F48: 4 | G48: 78.0 | H48: 2 | I48: 74.0 | J48: 2 | K48: 74.20 | L48: 1 | M48: 72.0 | N48: 4 | O48: 79 | P48: 2 | Q48: 74 | R48: 3 | S48: 71 | T48: 5 | U48: 78 | V48: 1 | W48: 75 | X48: 4 | Y48: 60 | Z48: 3 | AA48: 80 | AB48: 2 | AC48: 73.0 | AD48: 2 | AE48: 72 | AF48: 2 | AG48: 81 | AH48: 1 | AI48: 48 | AJ48: 3 | AK48: 86 | AL48: 1.5 | AM48: 76 | AN48: 2 | AO48: 46 | AP48: 3.5 | AQ48: 85 | AR48: 1 | AS48: 80 | AT48: 2 | AU48: 60 | AV48: 4.5 | AW48: 60 | AX48: 4 | AY48: 73 | AZ48: 4 | BA48: 81 | BB48: 2.5 | BC48: 36.0 | BD48: 4 | BE48: 86.0 | BF48: 1 | BG48: 75 | BH48: 2 | BI48: 83 | BJ48: 1 | BK48: 42 | BL48: 4 | BM48: 77.0 | BN48: 2 | BO48: 71.0 | BP48: 3 | BQ48: 89.0 | BR48: 3 | BS48: 75 | BT48: 2.5 | BU48: 60 | BV48: 2 | BW48: 61.0 | BX48: 3.5 | BY48: 62.0 | BZ48: 3 | CA48: 83 | CB48: 3 | CC48: 79 | CD48: 1 | CE48: 83 | CF48: 3 | CG48: 86 | CH48: 1 | CI48: 88 | CJ48: 2 | CK48: 80.0 | CL48: 3 | CM48: 87.0 | CN48: 2 | CO48: 84 | CP48: 3 | CQ48: 74 | CR48: 3 | CS48: 84 | CT48: 2 | CU48: 64 | CV48: 1 | CW48: 8984.7 | CX48: 127 | CY48: 70.74566929
A49: 2016010186 | B49: 邢延德 | C49: 49.0 | D49: 6 | E49: 59.0 | F49: 4 | G49: 89.0 | H49: 2 | I49: 83.0 | J49: 2 | K49: 72.00 | L49: 1 | M49: 64.0 | N49: 4 | O49: 71 | P49: 2 | Q49: 70 | R49: 3 | S49: 66 | T49: 5 | U49: 77 | V49: 1 | W49: 64 | X49: 4 | Y49: 60 | Z49: 3 | AA49: 72 | AB49: 2 | AC49: 64.0 | AD49: 2 | AE49: 80 | AF49: 2 | AG49: 85 | AH49: 1 | AI49: 70 | AJ49: 3 | AK49: 85 | AL49: 1.5 | AM49: 66 | AN49: 2 | AO49: 64 | AP49: 3.5 | AQ49: 83 | AR49: 1 | AS49: 76 | AT49: 2 | AU49: 60 | AV49: 4.5 | AW49: 78 | AX49: 4 | AY49: 77 | AZ49: 4 | BA49: 81 | BB49: 2.5 | BC49: 52.0 | BD49: 4 | BE49: 83.0 | BF49: 1 | BG49: 79 | BH49: 2 | BI49: 80 | BJ49: 1 | BK49: 48 | BL49: 4 | BM49: 79.0 | BN49: 2 | BO49: 80.0 | BP49: 3 | BQ49: 87.0 | BR49: 3 | BS49: 79 | BT49: 2.5 | BU49: 60 | BV49: 2 | BW49: 67.0 | BX49: 3.5 | BY49: 73.0 | BZ49: 3 | CA49: 82 | CB49: 3 | CC49: 90 | CD49: 1 | CE49: 89 | CF49: 3 | CG49: 81 | CH49: 1 | CI49: 90 | CJ49: 2 | CK49: 66.0 | CL49: 3 | CM49: 97.0 | CN49: 2 | CO49: 86 | CP49: 3 | CQ49: 83 | CR49: 3 | CS49: 85 | CT49: 2 | CU49: 66 | CV49: 1 | CW49: 9085 | CX49: 127 | CY49: 71.53543307
A50: 2016010187 | B50: 徐俊 | C50: 58.0 | D50: 6 | E50: 50.0 | F50: 4 | G50: 87.0 | H50: 2 | I50: 87.0 | J50: 2 | K50: 76.90 | L50: 1 | M50: 71.0 | N50: 4 | O50: 83 | P50: 2 | Q50: 71 | R50: 3 | S50: 49 | T50: 5 | U50: 89 | V50: 1 | W50: 71 | X50: 4 | Y50: 60 | Z50: 3 | AA50: 80 | AB50: 2 | AC50: 73.0 | AD50: 2 | AE50: 81 | AF50: 2 | AG50: 80 | AH50: 1 | AI50: 44 | AJ50: 3 | AK50: 87 | AL50: 1.5 | AM50: 73 | AN50: 2 | AO50: 41 | AP50: 3.5 | AQ50: 81 | AR50: 1 | AS50: 81 | AT50: 2 | AU50: 74 | AV50: 4.5 | AW50: 75 | AX50: 4 | AY50: 76 | AZ50: 4 | BA50: 81 | BB50: 2.5 | BC50: 39.0 | BD50: 4 | BE50: 86.0 | BF50: 1 | BG50: 81 | BH50: 2 | BI50: 84 | BJ50: 1 | BK50: 49 | BL50: 4 | BM50: 80.0 | BN50: 2 | BO50: 83.0 | BP50: 3 | BQ50: 85.0 | BR50: 3 | BS50: 81 | BT50: 2.5 | BU50: 69 | BV50: 2 | BW50: 60 | BX50: 3.5 | BY50: 60 | BZ50: 3 | CA50: 83 | CB50: 3 | CC50: 88 | CD50: 1 | CE50: 88 | CF50: 3 | CG50: 86 | CH50: 1 | CI50: 93 | CJ50: 2 | CK50: 82.0 | CL50: 3 | CM50: 91.0 | CN50: 2 | CO50: 80 | CP50: 3 | CQ50: 86 | CR50: 3 | CS50: 85 | CT50: 2 | CU50: 81 | CV50: 1 | CW50: 9044.9 | CX50: 127 | CY50: 71.21968504
A51: 2016010189 | B51: 赵鑫洋 | C51: 72.0 | D51: 6 | E51: 78.0 | F51: 4 | G51: 76.0 | H51: 2 | I51: 84.0 | J51: 2 | K51: 81.90 | L51: 1 | M51: 76.0 | N51: 4 | O51: 82 | P51: 2 | Q51: 67 | R51: 3 | S51: 76 | T51: 5 | U51: 80 | V51: 1 | W51: 79 | X51: 4 | Y51: 71 | Z51: 3 | AA51: 81 | AB51: 2 | AC51: 67.0 | AD51: 2 | AE51: 80 | AF51: 2 | AG51: 77 | AH51: 1 | AI51: 65 | AJ51: 3 | AK51: 84 | AL51: 1.5 | AM51: 74 | AN51: 2 | AO51: 64 | AP51: 3.5 | AQ51: 76 | AR51: 1 | AS51: 84 | AT51: 2 | AU51: 75 | AV51: 4.5 | AW51: 83 | AX51: 4 | AY51: 81 | AZ51: 4 | BA51: 79 | BB51: 2.5 | BC51: 73.0 | BD51: 4 | BE51: 83.0 | BF51: 1 | BG51: 77 | BH51: 2 | BI51: 84 | BJ51: 1 | BK51: 60 | BL51: 4 | BM51: 78.0 | BN51: 2 | BO51: 78.0 | BP51: 3 | BQ51: 77.0 | BR51: 3 | BS51: 77 | BT51: 2.5 | BU51: 64 | BV51: 2 | BW51: 69.0 | BX51: 3.5 | BY51: 71.0 | BZ51: 3 | CA51: 83 | CB51: 3 | CC51: 90 | CD51: 1 | CE51: 88 | CF51: 3 | CG51: 94 | CH51: 1 | CI51: 92 | CJ51: 2 | CK51: 67.0 | CL51: 3 | CM51: 93.0 | CN51: 2 | CO51: 80 | CP51: 3 | CQ51: 83 | CR51: 3 | CS51: 88 | CT51: 2 | CU51: 81 | CV51: 1 | CW51: 9727.9 | CX51: 127 | CY51: 76.5976378
A52: 2015010174 | B52: 达那江·哈吉 | C52: 47.0 | D52: 6 | E52: 64.0 | F52: 4 | G52: 75.0 | H52: 2 | I52: 82.0 | J52: 2 | K52: 71.30 | L52: 1 | M52: 72.0 | N52: 4 | O52: 77 | P52: 2 | Q52: 60 | R52: 3 | S52: 61 | T52: 5 | U52: 72 | V52: 1 | W52: 66 | X52: 4 | Y52: 43 | Z52: 3 | AA52: 70 | AB52: 2 | AC52: - | AD52: 2 | AE52: 67 | AF52: 2 | AG52: 76 | AH52: 1 | AI52: 86 | AJ52: 3 | AK52: 82 | AL52: 1.5 | AM52: 52 | AN52: 2 | AO52: 46 | AP52: 3.5 | AQ52: 75 | AR52: 1 | AS52: 71 | AT52: 2 | AU52: 60 | AV52: 4.5 | AW52: 62 | AX52: 4 | AY52: 55 | AZ52: 4 | BA52: 65 | BB52: 2.5 | BC52: 60 | BD52: 4 | BF52: 1 | BG52: 68 | BH52: 2 | BI52: 82 | BJ52: 1 | BK52: 37 | BL52: 4 | BM52: 66.0 | BN52: 2 | BO52: 68.0 | BP52: 3 | BQ52: 72 | BR52: 3 | BS52: 68 | BT52: 2.5 | BU52: 67 | BV52: 2 | BW52: 60 | BX52: 3.5 | BY52: 65.0 | BZ52: 3 | CA52: 66 | CB52: 3 | CC52: 72 | CD52: 1 | CE52: 74 | CF52: 3 | CG52: 70 | CH52: 1 | CI52: 87 | CJ52: 2 | CK52: 63 | CL52: 3 | CM52: 72 | CN52: 2 | CO52: 68 | CP52: 3 | CQ52: 83 | CR52: 3 | CS52: 80 | CT52: 2 | CU52: 67 | CV52: 1 | CW52: =C52*D52+E52*F52+G52*H52+I52*J52+K52*L52+M52*N52+O52*P52+Q52*R52+S52*T52+U52*V52+W52*X52+Y52*Z52+AA52*AB52+AE52*AF52+AG52*AH52+AI52*AJ52+AK52*AL52+AM52*AN52+AO52*AP52+AQ52*AR52+AS52*AT52+AU52*AV52+AW52*AX52+AY52*AZ52+BA52*BB52+BC52*BD52+BG52*BH52+BI52*BJ52+BK52*BL52+BM52*BN52+BO52*BP52+BQ52*BR52+BS52*BT52+BU52*BV52+BW52*BX52+BY52*BZ52+CA52*CB52+CC52*CD52+CE52*CF52+CG52*CH52+CI52*CJ52+CK52*CL52+CM52*CN52+CO52*CP52+CQ52*CR52+CS52*CT52+CU52*CV52 -> 8044.8 | CX52: =D52+F52+H52+J52+L52+N52+P52+R52+T52+V52+X52+Z52+AB52+AD52+AF52+AH52+AJ52+AL52+AN52+AP52+AR52+AT52+AV52+AX52+AZ52+BB52+BD52+BF52+BH52+BJ52+BL52+BN52+BP52+BR52+BT52+BV52+BX52+BZ52+CB52+CD52+CF52+CH52+CJ52+CL52+CN52+CP52+CR52+CT52+CV52-1-2 -> 124 | CY52: 64.87741935

Sheet 优良率
A1: 学号 | B1: 姓名 | C1: 课程号 | D1: 课程号 | E1: 课程号 | F1: 课程号 | G1: 课程号 | H1: 课程号 | I1: 课程号 | J1: 课程号 | K1: 课程号 | L1: 课程号 | M1: 课程号 | N1: 课程号 | O1: 课程号 | P1: 课程号 | Q1: 课程号 | R1: 课程号 | S1: 课程号 | T1: 课程号 | U1: 课程号 | V1: 课程号 | W1: 课程号 | X1: 课程号 | Y1: 课程号 | Z1: 课程号 | AA1: 课程号 | AB1: 课程号 | AC1: 课程号 | AD1: 课程号 | AE1: 课程号 | AF1: 课程号 | AG1: 课程号 | AH1: 课程号 | AI1: 课程号 | AJ1: 课程号 | AK1: 课程号 | AL1: 课程号 | AM1: 课程号 | AN1: 课程号 | AO1: 课程号 | AP1: 课程号 | AQ1: 课程号 | AR1: 课程号 | AS1: 课程号 | AT1: 课程号 | AU1: 课程号 | AV1: 课程号 | AW1: 课程号 | AX1: 课程号 | AY1: 课程号 | AZ1: 优良科目 | BA1: 优良率(%)
C2: 高等数学B1 | D2: C语言程序设计 | E2: 中国近现代史纲要 | F2: 思想道德修养和法律基础 | G2: 大学体育1 | H2: 大学英语1 | I2: 马克思主义基本原理概论 | J2: 大学物理C1 | K2: 高等数学B2 | L2: 大学体育2 | M2: 大学英语2 | N2: 大学物理C2 | O2: 毛概1 | P2: 大物实验B1 | Q2: 大学英语3 | R2: 大学体育3 | S2: 线性代数 | T2: 大物实验B2 | U2: 大学英语4 | V2: 概率论与数理统计 | W2: 大学体育4 | X2: 毛概2 | Y2: 无机化学与分析化学 | Z2: 地球科学概论 | AA2: 环境学基础 | AB2: 无机与分析化学实验1 | AC2: 物理化学 | AD2: 无机与分析化学实验2 | AE2: 普通生态学 | AF2: 物理化学实验1 | AG2: 有机化学 | AH2: 有机化学实验 | AI2: 现代仪器分析 | AJ2: 环境生物学 | AK2: 环境监测实验 | AL2: 环境监测 | AM2: 环境化学 | AN2: 环境管理学 | AO2: 环境科学认识实习 | AP2: 普通生态学大作业 | AQ2: 生态学实习 | AR2: 入学教育与安全教育 | AS2: 军事训练1 | AT2: 环境经济学 | AU2: 环境法学 | AV2: 环境地球化学概论 | AW2: 环境评价 | AX2: 环境质量评价大作业 | AY2: 就业指导
A3: 2016010130 | B3: 段练 | C3: 93 | D3: 94 | E3: 85 | F3: 88 | G3: 82 | H3: 86 | I3: 77 | J3: 93 | K3: 93 | L3: 89 | M3: 89 | N3: 86 | O3: 88 | P3: 81 | Q3: 87 | R3: 90 | S3: 90 | T3: 86 | U3: 82 | V3: 80 | W3: 85 | X3: 90 | Y3: 97 | Z3: 83 | AA3: 84 | AB3: 90 | AC3: 83 | AD3: 92 | AE3: 92 | AF3: 87 | AG3: 75 | AH3: 87 | AI3: 95 | AJ3: 91 | AK3: 85 | AL3: 82 | AM3: 93 | AN3: 88 | AO3: 93 | AP3: 92 | AQ3: 96 | AR3: 89 | AS3: 94 | AT3: 84 | AU3: 92 | AV3: 93 | AW3: 89 | AX3: 92 | AY3: 88 | AZ3: =COUNTIF(C3:AY3,">=80") -> 47 | BA3: =AZ3/49*100 -> 95.91836735
A4: 2016010131 | B4: 耿夏欣 | C4: 64 | D4: 68 | E4: 83 | F4: 88 | G4: 66 | H4: 68 | I4: 85 | J4: 85 | K4: 81 | L4: 90 | M4: 85 | N4: 76 | O4: 90 | P4: 73 | Q4: 71 | R4: 82 | S4: 74 | T4: 89 | U4: 80 | V4: 66 | W4: 90 | X4: 93 | Y4: 77 | Z4: 80 | AA4: 91 | AB4: 83 | AC4: 69 | AD4: 91 | AE4: 80 | AF4: 86 | AG4: 60 | AH4: 81 | AI4: 86 | AJ4: 81 | AK4: 84 | AL4: 68 | AM4: 76 | AN4: 90 | AO4: 90 | AP4: 89 | AQ4: 93 | AR4: 89 | AS4: 94 | AT4: 94 | AU4: 89 | AV4: 80 | AW4: 78 | AX4: 80 | AY4: 84 | AZ4: 34 | BA4: =AZ4/49*100 -> 69.3877551
A5: 2016010132 | B5: 郭超洁 | C5: 83 | D5: 95 | E5: 92 | F5: 90 | G5: 75 | H5: 82 | I5: 82 | J5: 95 | K5: 94 | L5: 92 | M5: 90 | N5: 98 | O5: 91 | P5: 86 | Q5: 91 | R5: 94 | S5: 90 | T5: 88 | U5: 94 | V5: 87 | W5: 80 | X5: 91 | Y5: 91 | Z5: 90 | AA5: 92 | AB5: 91 | AC5: 81 | AD5: 94 | AE5: 92 | AF5: 90 | AG5: 83 | AH5: 91 | AI5: 99 | AJ5: 96 | AK5: 86 | AL5: 83 | AM5: 96 | AN5: 90 | AO5: 95 | AP5: 94 | AQ5: - | AR5: 86 | AS5: 98 | AT5: 92 | AU5: 93 | AV5: 96 | AW5: 92 | AX5: 92 | AY5: 87 | AZ5: 47 | BA5: =AZ5/48*100 -> 97.91666667
A6: 2016010135 | B6: 解竞帆 | C6: 61 | D6: 60 | E6: 81 | F6: 78 | G6: 90 | H6: 70 | I6: 74 | J6: 61 | K6: 73 | L6: 96 | M6: 76 | N6: 61 | O6: 86 | P6: 74 | Q6: 72 | R6: 89 | S6: 70 | T6: 86 | U6: 73 | V6: 62 | W6: 90 | X6: 80 | Y6: 70 | Z6: 76 | AA6: 82 | AB6: 82 | AC6: 73 | AD6: 93 | AE6: 92 | AF6: 85 | AG6: 61 | AH6: 81 | AI6: 80 | AJ6: 88 | AK6: 77 | AL6: 67 | AM6: 86 | AN6: 74 | AO6: 91 | AP6: 93 | AQ6: 94 | AR6: 82 | AS6: 94 | AT6: 73 | AU6: 90 | AV6: 90 | AW6: 85 | AX6: 80 | AY6: 98 | AZ6: 27 | BA6: 55.10204082
A7: 2016010136 | B7: 赖雨薇 | C7: 66 | D7: 76 | E7: 77 | F7: 78 | G7: 61 | H7: 60 | I7: 80 | J7: 63 | K7: 84 | L7: 86 | M7: 76 | N7: 60 | O7: 84 | P7: 66 | Q7: 73 | R7: 86 | S7: 68 | T7: 85 | U7: 80 | V7: 68 | W7: 89 | X7: 74 | Y7: 62 | Z7: 74 | AA7: 76 | AB7: 81 | AC7: 60 | AD7: 87 | AE7: 84 | AF7: 90 | AG7: 60 | AH7: 85 | AI7: 92 | AJ7: 80 | AK7: 79 | AL7: 65 | AM7: 85 | AN7: 81 | AO7: 94 | AP7: 88 | AQ7: 93 | AR7: 92 | AS7: 90 | AT7: 85 | AU7: 90 | AV7: 90 | AW7: 95 | AX7: 90 | AY7: 90 | AZ7: 28 | BA7: 57.14285714
A8: 2016010137 | B8: 罗抒晗 | C8: 68 | D8: 69 | E8: 76 | F8: 77 | G8: 77 | H8: 74 | I8: 81 | J8: 67 | K8: 73 | L8: 86 | M8: 83 | N8: 63 | O8: 87 | P8: 71 | Q8: 86 | R8: 89 | S8: 66 | T8: 86 | U8: 80 | V8: 68 | W8: 83 | X8: 83 | Y8: 70 | Z8: 74 | AA8: 82 | AB8: 84 | AC8: 62 | AD8: 86 | AE8: 82 | AF8: 87 | AG8: 67 | AH8: 84 | AI8: 82 | AJ8: 87 | AK8: 83 | AL8: 73 | AM8: 74 | AN8: 71 | AO8: 90 | AP8: 90 | AQ8: 96 | AR8: 89 | AS8: 93 | AT8: 86 | AU8: 91 | AV8: 90 | AW8: 90 | AX8: 83 | AY8: 86 | AZ8: 30 | BA8: 61.2244898
A9: 2016010138 | B9: 麻晓梅 | C9: 70 | D9: 91 | E9: 85 | F9: 83 | G9: 73 | H9: 71 | I9: 92 | J9: 85 | K9: 92 | L9: 78 | M9: 81 | N9: 81 | O9: 89 | P9: 87 | Q9: 82 | R9: 86 | S9: 77 | T9: 87 | U9: 87 | V9: 84 | W9: 82 | X9: 88 | Y9: 91 | Z9: 90 | AA9: 90 | AB9: 88 | AC9: 88 | AD9: 88 | AE9: 90 | AF9: 89 | AG9: 67 | AH9: 85 | AI9: 90 | AJ9: 91 | AK9: 92 | AL9: 82 | AM9: 91 | AN9: 88 | AO9: 93 | AP9: 86 | AQ9: 94 | AR9: 100 | AS9: 92 | AT9: 97 | AU9: 96 | AV9: 87 | AW9: 92 | AX9: 90 | AY9: 89 | AZ9: =COUNTIF(C9:AY9,">=80") -> 43 | BA9: 87.75510204
A10: 2016010139 | B10: 孙霄 | C10: 75 | D10: 73 | E10: 77 | F10: 84 | G10: 77 | H10: 84 | I10: 85 | J10: 80 | K10: 89 | L10: 84 | M10: 85 | N10: 87 | O10: 84 | P10: 81 | Q10: 90 | R10: 89 | S10: 86 | T10: 85 | U10: 90 | V10: 90 | W10: 86 | X10: 82 | Y10: 90 | Z10: 86 | AA10: 93 | AB10: 86 | AC10: 83 | AD10: 86 | AE10: 84 | AF10: 89 | AG10: 66 | AH10: 84 | AI10: 96 | AJ10: 83 | AK10: 91 | AL10: 81 | AM10: 83 | AN10: 90 | AO10: 92 | AP10: 88 | AQ10: 97 | AR10: 88 | AS10: 90 | AT10: 96 | AU10: 90 | AV10: 93 | AW10: 88 | AX10: 88 | AY10: 93 | AZ10: 44 | BA10: 89.79591837
A11: 2016010140 | B11: 王明洋 | C11: 62 | D11: 60 | E11: 84 | F11: 83 | G11: 64 | H11: 78 | I11: 68 | J11: 62 | K11: 68 | L11: 86 | M11: 91 | N11: 67 | O11: 83 | P11: 67 | Q11: 86 | R11: 90 | S11: 73 | T11: 85 | U11: 91 | V11: 75 | W11: 88 | X11: 82 | Y11: 67 | Z11: 69 | AA11: 90 | AB11: 91 | AC11: 84 | AD11: 85 | AE11: 88 | AF11: 89 | AG11: 63 | AH11: 88 | AI11: 92 | AJ11: 91 | AK11: 86 | AL11: 77 | AM11: 91 | AN11: 88 | AO11: 90 | AP11: 93 | AQ11: 95 | AR11: 89 | AS11: 93 | AT11: 90 | AU11: 95 | AV11: 95 | AW11: 89 | AX11: 86 | AY11: 94 | AZ11: 34 | BA11: 69.3877551
A12: 2016010141 | B12: 尹舒慧 | C12: 79 | D12: 83 | E12: 83 | F12: 85 | G12: 74 | H12: 75 | I12: 90 | J12: 84 | K12: 95 | L12: 83 | M12: 82 | N12: 76 | O12: 90 | P12: 79 | Q12: 82 | R12: 85 | S12: 68 | T12: 84 | U12: 83 | V12: 82 | W12: 92 | X12: 82 | Y12: 86 | Z12: 87 | AA12: 97 | AB12: 88 | AC12: 81 | AD12: 84 | AE12: 92 | AF12: 85 | AG12: 64 | AH12: 87 | AI12: 94 | AJ12: 91 | AK12: 88 | AL12: 63 | AM12: 96 | AN12: 91 | AO12: 91 | AP12: 95 | AQ12: 97 | AR12: 81 | AS12: 92 | AT12: 91 | AU12: 94 | AV12: 92 | AW12: 95 | AX12: 87 | AY12: 91 | AZ12: 41 | BA12: 83.67346939
A13: 2016010143 | B13: 丁紫鹤 | C13: 60 | D13: 60 | E13: 78 | F13: 80 | G13: 80 | H13: 61 | I13: 78 | J13: 62 | K13: 60 | L13: 84 | M13: 64 | N13: 70 | O13: 74 | P13: 60 | Q13: 65 | R13: 77 | S13: 85 | T13: 84.4 | U13: 64 | V13: 61 | W13: 91 | X13: 73 | Y13: 60 | Z13: 60 | AA13: 74 | AB13: 66 | AC13: 60 | AD13: 81 | AE13: 74 | AF13: 78 | AG13: 37 | AH13: 73 | AI13: 61 | AJ13: 89 | AK13: 76 | AL13: 46 | AM13: 60 | AN13: 60 | AO13: 76 | AP13: 88 | AQ13: 82 | AR13: 85 | AS13: 92 | AT13: 61 | AU13: 76 | AV13: 48 | AW13: 62 | AX13: 83 | AY13: 67 | AZ13: 13 | BA13: 26.53061224
A14: 2016010144 | B14: 李臣委 | C14: 64 | D14: 60 | E14: 76 | F14: 86 | G14: 73 | H14: 74 | I14: 81 | J14: 88 | K14: 60 | L14: 80 | M14: 80 | N14: 61 | O14: 52 | P14: 60 | Q14: 78 | R14: 75 | S14: 82 | T14: 84.3 | U14: 74 | V14: 68 | W14: 65 | X14: 78 | Y14: 61 | Z14: 79 | AA14: 62 | AB14: 81 | AC14: 61 | AD14: 84 | AE14: 77 | AF14: 84 | AG14: 47 | AH14: 80 | AI14: 70 | AJ14: 82 | AK14: 77 | AL14: 61 | AM14: 60 | AN14: 80 | AO14: 80 | AP14: 85 | AQ14: 87 | AR14: 85 | AS14: 81 | AT14: 63 | AU14: 82 | AV14: 70 | AW14: 81 | AX14: 80 | AY14: 76 | AZ14: 21 | BA14: 42.85714286
A15: 2016010145 | B15: 刘泽 | C15: 65 | D15: 62 | E15: 71 | F15: 75 | G15: 79 | H15: 74 | I15: 74 | J15: 69 | K15: 63 | L15: 90 | M15: 70 | N15: 60 | O15: 80 | P15: 64 | Q15: 60 | R15: 90 | S15: 40 | T15: 75.9 | U15: 72 | V15: 40 | W15: 89 | X15: 76 | Y15: 64 | Z15: 70 | AA15: 83 | AB15: 78 | AC15: 37 | AD15: 76 | AE15: 81 | AF15: 76 | AG15: 39 | AH15: 80 | AI15: 60 | AJ15: 76 | AK15: 74 | AL15: 42 | AM15: 60 | AN15: 66 | AO15: 70 | AP15: 82 | AQ15: 87 | AR15: 71 | AS15: 94 | AT15: 70 | AU15: 62 | AV15: 64 | AW15: 69 | AX15: 78 | AY15: 65 | AZ15: 10 | BA15: 20.40816327
A16: 2016010146 | B16: 盛梦凡 | C16: 45 | D16: 60 | E16: 84 | F16: 81 | G16: 67 | H16: 69 | I16: 84 | J16: 68 | K16: 48 | L16: 77 | M16: 73 | N16: 70 | O16: 72 | P16: 70 | Q16: 69 | R16: 75 | S16: 80 | T16: 80.3 | U16: 60 | V16: 65 | W16: 62 | X16: 74 | Y16: 60 | Z16: 60 | AA16: 81 | AB16: 74 | AC16: 65 | AD16: 81 | AE16: 87 | AF16: 79 | AG16: 42 | AH16: 75 | AI16: 73 | AJ16: 86 | AK16: 80 | AL16: 53 | AM16: 68 | AN16: 62 | AO16: 72 | AP16: 79 | AQ16: 89 | AR16: 89 | AS16: 87 | AT16: 71 | AU16: 87 | AV16: 75 | AW16: 81 | AX16: 76 | AY16: 71 | AZ16: 15 | BA16: 30.6122449
A17: 2016010148 | B17: 王一帆 | C17: 0 | D17: 60 | E17: 80 | F17: 76 | G17: 65 | H17: 60 | I17: 83 | J17: 64 | K17: 60 | L17: 0 | M17: 60 | N17: 66 | O17: 78 | P17: 0 | Q17: 0 | R17: 68 | S17: 86 | T17: 64 | U17: 65 | V17: 66 | W17: 84 | X17: 84 | Y17: 56 | Z17: 66 | AA17: 85 | AB17: 60 | AC17: 54 | AD17: 85 | AE17: 77 | AF17: 80 | AG17: 66 | AH17: 78 | AI17: 68 | AJ17: 86 | AK17: 73 | AL17: 60 | AM17: 51 | AN17: 78 | AO17: 70 | AP17: 83 | AQ17: 79 | AR17: 77 | AS17: 90 | AT17: 13 | AU17: 60 | AV17: 64 | AW17: 73 | AX17: 86 | AY17: 60 | AZ17: 12 | BA17: 24.48979592
A18: 2016010150 | B18: 徐加霸 | C18: 66 | D18: 60 | E18: 77 | F18: 79 | G18: 85 | H18: 61 | I18: 82 | J18: 78 | K18: 60 | L18: 88 | M18: 65 | N18: 70 | O18: 81 | P18: 70 | Q18: 73 | R18: 95 | S18: 71 | T18: 84 | U18: 70 | V18: 74 | W18: 86 | X18: 72 | Y18: 77 | Z18: 76 | AA18: 81 | AB18: 81 | AC18: 67 | AD18: 79 | AE18: 87 | AF18: 85 | AG18: 63 | AH18: 81 | AI18: 76 | AJ18: 84 | AK18: 81 | AL18: 54 | AM18: 68 | AN18: 72 | AO18: 83 | AP18: 88 | AQ18: 87 | AR18: 77 | AS18: 94 | AT18: 85 | AU18: 85 | AV18: 71 | AW18: 85 | AX18: 81 | AY18: 72 | AZ18: 22 | BA18: 44.89795918
A19: 2016010151 | B19: 杨宇 | C19: 60 | D19: 60 | E19: 82 | F19: 90 | G19: 75 | H19: 66 | I19: 80 | J19: 71 | K19: 79 | L19: 77 | M19: 72 | N19: 63 | O19: 81 | P19: 73 | Q19: 68 | R19: 86 | S19: 79 | T19: 83 | U19: 60 | V19: 64 | W19: 76 | X19: 87 | Y19: 60 | Z19: 81 | AA19: 92 | AB19: 84 | AC19: 60 | AD19: 82 | AE19: 88 | AF19: 84 | AG19: 60 | AH19: 84 | AI19: 80 | AJ19: 79 | AK19: 78 | AL19: 61 | AM19: 72 | AN19: 76 | AO19: 86 | AP19: 90 | AQ19: 90 | AR19: 91 | AS19: 95 | AT19: 76 | AU19: 85 | AV19: 74 | AW19: 86 | AX19: 91 | AY19: 76 | AZ19: 23 | BA19: 46.93877551
A20: 2016010152 | B20: 余锦标 | C20: 60 | D20: 60 | E20: 74 | F20: 84 | G20: 75 | H20: 75 | I20: 69 | J20: 70 | K20: 65 | L20: 88 | M20: 72 | N20: 70 | O20: 72 | P20: 63 | Q20: 94 | R20: 92 | S20: 94 | T20: 79 | U20: 66 | V20: 85 | W20: 79 | X20: 81 | Y20: 65 | Z20: 68 | AA20: 69 | AB20: 69 | AC20: 62 | AD20: 79 | AE20: 60 | AF20: 80 | AG20: 64 | AH20: 78 | AI20: 72 | AJ20: 67 | AK20: 81 | AL20: 79 | AM20: 66 | AN20: 70 | AO20: 76 | AP20: 81 | AQ20: 82 | AR20: 86 | AS20: 92 | AT20: 65 | AU20: 60 | AV20: 66 | AW20: 74 | AX20: 80 | AY20: 80 | AZ20: 15 | BA20: 30.6122449
A21: 2016010154 | B21: 张一驰 | C21: 66 | D21: 60 | E21: 71 | F21: 81 | G21: 64 | H21: 60 | I21: 80 | J21: 60 | K21: 60 | L21: 82 | M21: 60 | N21: 61 | O21: 80 | P21: 67 | Q21: 66 | R21: 70 | S21: 63 | T21: 74 | U21: 60 | V21: 69 | W21: 72 | X21: 83 | Y21: 76 | Z21: 60 | AA21: 61 | AB21: 65 | AC21: 63 | AD21: 76 | AE21: 67 | AF21: 75 | AG21: 63 | AH21: 74 | AI21: 70 | AJ21: 69 | AK21: 67 | AL21: 51 | AM21: 67 | AN21: 65 | AO21: 65 | AP21: 74 | AQ21: 77 | AR21: 78 | AS21: 81 | AT21: 67 | AU21: 62 | AV21: 60 | AW21: 70 | AX21: 79 | AY21: 72 | AZ21: 6 | BA21: 12.24489796
A22: 2016010155 | B22: 赵启发 | C22: 60 | D22: 60 | E22: 85 | F22: 79 | G22: 79 | H22: 64 | I22: 74 | J22: 60 | K22: 60 | L22: 74 | M22: 60 | N22: 70 | O22: 78 | P22: 72 | Q22: 86 | R22: 92 | S22: 89 | T22: 83 | U22: 80 | V22: 81 | W22: 77 | X22: 84 | Y22: 53 | Z22: 73 | AA22: 75 | AB22: 79 | AC22: 73 | AD22: 84 | AE22: 91 | AF22: 85 | AG22: 65 | AH22: 73 | AI22: 74 | AJ22: 90 | AK22: 80 | AL22: 60 | AM22: 60 | AN22: 75 | AO22: 90 | AP22: 82 | AQ22: 94 | AR22: 82 | AS22: 91 | AT22: 60 | AU22: 82 | AV22: 80 | AW22: 76 | AX22: 89 | AY22: 83 | AZ22: 22 | BA22: 44.89795918
A23: 2016010156 | B23: 赵鑫 | C23: 60 | D23: 60 | E23: 81 | F23: 75 | G23: 87 | H23: 60 | I23: 88 | J23: 62 | K23: 60 | L23: 96 | M23: 60 | N23: 65 | O23: 62 | P23: 60 | Q23: 70 | R23: 81 | S23: 87 | T23: 76 | U23: 42 | V23: 16 | W23: 81 | X23: 78 | Y23: 60 | Z23: 66 | AA23: 74 | AB23: 68 | AC23: 60 | AD23: 82 | AE23: 77 | AF23: 83 | AG23: 38 | AH23: 76 | AI23: 60 | AJ23: 74 | AK23: 80 | AL23: 48 | AM23: 60 | AN23: 73 | AO23: 73 | AP23: 86 | AQ23: 83 | AR23: 85 | AS23: 84 | AT23: 35 | AU23: 60 | AV23: 42 | AW23: 70 | AX23: 81 | AY23: 77 | AZ23: 15 | BA23: 30.6122449
A24: 2016010159 | B24: 朱江 | C24: 61 | D24: 60 | E24: 84 | F24: 71 | G24: 68 | H24: 62 | I24: 82 | J24: 76 | K24: 60 | L24: 79 | M24: 66 | N24: 42 | O24: 80 | P24: 60 | Q24: 80 | R24: 66 | S24: 62 | T24: 79 | U24: 76 | V24: 66 | W24: 66 | X24: 76 | Y24: 61 | Z24: 74 | AA24: 69 | AB24: 68 | AC24: 54 | AD24: 81 | AE24: 82 | AF24: 80 | AG24: 49 | AH24: 70 | AI24: 62 | AJ24: 73 | AK24: 70 | AL24: 47 | AM24: 60 | AN24: 67 | AO24: 79 | AP24: 90 | AQ24: 92 | AR24: 80 | AS24: 90 | AT24: 51 | AU24: 71 | AV24: 61 | AW24: 80 | AX24: 83 | AY24: 70 | AZ24: 13 | BA24: 26.53061224
A25: 2016010160 | B25: 方熹鹤 | C25: 49 | D25: 60 | E25: 79 | F25: 87 | G25: 73.4 | H25: 76 | I25: 85 | J25: 60 | K25: 60 | L25: 87 | M25: 71 | N25: 85 | O25: 81 | P25: 66 | Q25: 78 | R25: 87 | S25: 81 | T25: 86 | U25: 74 | V25: 71 | W25: 94 | X25: 81 | Y25: 60 | Z25: 79 | AA25: 91 | AB25: 73 | AC25: 49 | AD25: 87 | AE25: 78 | AF25: 83 | AG25: 60 | AH25: 81 | AI25: 72 | AJ25: 90 | AK25: 78 | AL25: 65 | AM25: 71 | AN25: 80 | AO25: 91 | AP25: 86 | AQ25: 94 | AR25: 80 | AS25: 95 | AT25: 80 | AU25: 97 | AV25: 74 | AW25: 84 | AX25: 89 | AY25: 90 | AZ25: 26 | BA25: 53.06122449
A26: 2016010161 | B26: 李梦扬 | C26: 48 | D26: 80 | E26: 77 | F26: 86 | G26: 78.5 | H26: 73 | I26: 80 | J26: 62 | K26: 72 | L26: 92 | M26: 75 | N26: 71 | O26: 80 | P26: 82 | Q26: 86 | R26: 90 | S26: 64 | T26: 85 | U26: 78 | V26: 76 | W26: 92 | X26: 78 | Y26: 72 | Z26: 75 | AA26: 90 | AB26: 90 | AC26: 76 | AD26: 86 | AE26: 87 | AF26: 88 | AG26: 60 | AH26: 88 | AI26: 95 | AJ26: 85 | AK26: 87 | AL26: 66 | AM26: 96 | AN26: 85 | AO26: 91 | AP26: 82 | AQ26: 90 | AR26: 89 | AS26: 87 | AT26: 92 | AU26: 92 | AV26: 91 | AW26: 89 | AX26: 87 | AY26: 92 | AZ26: 32 | BA26: 65.30612245
A27: 2016010163 | B27: 刘改过 | C27: 66 | D27: 70 | E27: 79 | F27: 79 | G27: 78.55 | H27: 65 | I27: 80 | J27: 90 | K27: 89 | L27: 87 | M27: 76 | N27: 85 | O27: 81 | P27: 88 | Q27: 86 | R27: 88 | S27: 82 | T27: 88 | U27: 74 | V27: 77 | W27: 85 | X27: 87 | Y27: 87 | Z27: 87 | AA27: 89 | AB27: 87 | AC27: 86 | AD27: 84 | AE27: 90 | AF27: 89 | AG27: 70 | AH27: 90 | AI27: 94 | AJ27: 84 | AK27: 90 | AL27: 81 | AM27: 95 | AN27: 89 | AO27: 87 | AP27: 76 | AQ27: 90 | AR27: 87 | AS27: 86 | AT27: 93 | AU27: 91 | AV27: 88 | AW27: 89 | AX27: 91 | AY27: 88 | AZ27: 38 | BA27: 77.55102041
A28: 2016010164 | B28: 刘雅雯 | C28: 65 | D28: 60 | E28: 67 | F28: 81 | G28: 72.6 | H28: 85 | I28: 72 | J28: 60 | K28: 73 | L28: 95 | M28: 75 | N28: 81 | O28: 78 | P28: 68 | Q28: 83 | R28: 82 | S28: 88 | T28: 87 | U28: 70 | V28: 77 | W28: 96 | X28: 72 | Y28: 60 | Z28: 63 | AA28: 79 | AB28: 81 | AC28: 64 | AD28: 91 | AE28: 86 | AF28: 83 | AG28: 60 | AH28: 77 | AI28: 66 | AJ28: 89 | AK28: 86 | AL28: 60 | AM28: 70 | AN28: 83 | AO28: 80 | AP28: 91 | AQ28: 93 | AR28: 83 | AS28: 93 | AT28: 71 | AU28: 84 | AV28: 74 | AW28: 85 | AX28: 86 | AY28: 84 | AZ28: 25 | BA28: 51.02040816
A29: 2016010165 | B29: 尚青 | C29: 63 | D29: 87 | E29: 88 | F29: 82 | G29: 80.6 | H29: 60 | I29: 82 | J29: 79 | K29: 87 | L29: 83 | M29: 73 | N29: 84 | O29: 78 | P29: 89 | Q29: 85 | R29: 88 | S29: 71 | T29: 85 | U29: 77 | V29: 81 | W29: 87 | X29: 80 | Y29: 71 | Z29: 87 | AA29: 91 | AB29: 88 | AC29: 91 | AD29: 84 | AE29: 85 | AF29: 88 | AG29: 71 | AH29: 89 | AI29: 93 | AJ29: 89 | AK29: 85 | AL29: 77 | AM29: 92 | AN29: 89 | AO29: 87 | AP29: 87 | AQ29: 90 | AR29: 81 | AS29: 91 | AT29: 90 | AU29: 90 | AV29: 91 | AW29: 89 | AX29: 87 | AY29: 88 | AZ29: 39 | BA29: 79.59183673
A30: 2016010166 | B30: 汤明珍 | C30: 66 | D30: 80 | E30: 79 | F30: 84 | G30: 81.9 | H30: 70 | I30: 83 | J30: 73 | K30: 73 | L30: 89 | M30: 76 | N30: 65 | O30: 84 | P30: 77 | Q30: 76 | R30: 90 | S30: 65 | T30: 85 | U30: 84 | V30: 80 | W30: 90 | X30: 84 | Y30: 87 | Z30: 78 | AA30: 82 | AB30: 91 | AC30: 78 | AD30: 90 | AE30: 87 | AF30: 87 | AG30: 75 | AH30: 88 | AI30: 97 | AJ30: 90 | AK30: 87 | AL30: 73 | AM30: 92 | AN30: 83 | AO30: 84 | AP30: 88 | AQ30: 93 | AR30: 88 | AS30: 87 | AT30: 76 | AU30: 90 | AV30: 91 | AW30: 96 | AX30: 84 | AY30: 92 | AZ30: 34 | BA30: 69.3877551
A31: 2016010167 | B31: 涂茁炜 | C31: 53 | D31: 66 | E31: 76 | F31: 78 | G31: 77.1 | H31: 85 | I31: 82 | J31: 66 | K31: 64 | L31: 74 | M31: 84 | N31: 70 | O31: 86 | P31: 72 | Q31: 86 | R31: 93 | S31: 77 | T31: 84 | U31: 80 | V31: 63 | W31: 75 | X31: 80 | Y31: 66 | Z31: 76 | AA31: 76 | AB31: 83 | AC31: 72 | AD31: 91 | AE31: 73 | AF31: 85 | AG31: 60 | AH31: 78 | AI31: 86 | AJ31: 82 | AK31: 73 | AL31: 63 | AM31: 76 | AN31: 81 | AO31: 84 | AP31: 76 | AQ31: 89 | AR31: 76 | AS31: 93 | AT31: 86 | AU31: 93 | AV31: 80 | AW31: 89 | AX31: 84 | AY31: 83 | AZ31: 24 | BA31: 48.97959184
A32: 2016010168 | B32: 许家宁 | C32: 60 | D32: 60 | E32: 79 | F32: 83 | G32: 72.5 | H32: 69 | I32: 74 | J32: 72 | K32: 72 | L32: 88 | M32: 74 | N32: 70 | O32: 73 | P32: 70 | Q32: 73 | R32: 93 | S32: 76 | T32: 85 | U32: 62 | V32: 74 | W32: 84 | X32: 80 | Y32: 63 | Z32: 66 | AA32: 85 | AB32: 76 | AC32: 70 | AD32: 86 | AE32: 79 | AF32: 85 | AG32: 60 | AH32: 80 | AI32: 78 | AJ32: 88 | AK32: 79 | AL32: 60 | AM32: 79 | AN32: 80 | AO32: 81 | AP32: 90 | AQ32: 88 | AR32: 82 | AS32: 87 | AT32: 72 | AU32: 89 | AV32: 76 | AW32: 87 | AX32: 82 | AY32: 85 | AZ32: 21 | BA32: 42.85714286
A33: 2016010169 | B33: 张诗卿 | C33: 57 | D33: 60 | E33: 80 | F33: 78 | G33: 74.55 | H33: 80 | I33: 68 | J33: 64 | K33: 81 | L33: 87 | M33: 66 | N33: 85 | O33: 86 | P33: 76 | Q33: 71 | R33: 79 | S33: 84 | T33: 84 | U33: 70 | V33: 83 | W33: 84 | X33: 82 | Y33: 70 | Z33: 65 | AA33: 83 | AB33: 80 | AC33: 78 | AD33: 87 | AE33: 83 | AF33: 82 | AG33: 65 | AH33: 74 | AI33: 66 | AJ33: 91 | AK33: 83 | AL33: 67 | AM33: 77 | AN33: 78 | AO33: 81 | AP33: 88 | AQ33: 91 | AR33: 83 | AS33: 91 | AT33: 63 | AU33: 83 | AV33: 68 | AW33: 87 | AX33: 82 | AY33: 78 | AZ33: 26 | BA33: 53.06122449
A34: 2016010171 | B34: 胡啸林 | C34: 74 | D34: 66 | E34: 77 | F34: 81 | G34: 76.5 | H34: 70 | I34: 82 | J34: 87 | K34: 96 | L34: 70 | M34: 74 | N34: 64 | O34: 88 | P34: - | Q34: 79 | R34: 61 | S34: 74 | T34: - | U34: 45 | V34: 77 | W34: 71 | X34: 82 | Y34: 92 | Z34: 70 | AA34: 83 | AB34: 85 | AC34: 80 | AD34: 87 | AE34: 80 | AF34: 71 | AG34: 76 | AH34: 70 | AI34: 70 | AJ34: 81 | AK34: 80 | AL34: 69 | AM34: 66 | AN34: 63 | AO34: 84 | AP34: 79 | AQ34: 72 | AR34: 81 | AS34: 83 | AT34: 75 | AU34: 79 | AV34: 63 | AW34: 70 | AX34: 60 | AY34: 68 | AZ34: 17 | BA34: 34.69387755
A35: 2016010172 | B35: 李牛江杰 | C35: 66 | D35: 76 | E35: 77 | F35: 79 | G35: 76.1 | H35: 77 | I35: 71 | J35: 63 | K35: 61 | L35: 73 | M35: 73 | N35: 66 | O35: 77 | P35: 68 | Q35: 65 | R35: 84 | S35: 48 | T35: 86 | U35: 76 | V35: 66 | W35: 78 | X35: 84 | Y35: 60 | Z35: 69 | AA35: 81 | AB35: 72 | AC35: 60 | AD35: 81 | AE35: 74 | AF35: 80 | AG35: 60 | AH35: 71 | AI35: 66 | AJ35: 75 | AK35: 74 | AL35: 63 | AM35: 73 | AN35: 67 | AO35: 79 | AP35: 82 | AQ35: 91 | AR35: 77 | AS35: 97 | AT35: 76 | AU35: 84 | AV35: 73 | AW35: 82 | AX35: 82 | AY35: 80 | AZ35: 13 | BA35: 26.53061224
A36: 2016010173 | B36: 李志萌 | C36: 60 | D36: 78 | E36: 80 | F36: 80 | G36: 68 | H36: 61 | I36: 81 | J36: 68 | K36: 75 | L36: 87 | M36: 60 | N36: 60 | O36: 80 | P36: 74 | Q36: 60 | R36: 82 | S36: 69 | T36: 84 | U36: 66 | V36: 73 | W36: 83 | X36: 77 | Y36: 63 | Z36: 64 | AA36: 73 | AB36: 80 | AC36: 66 | AD36: 82 | AE36: 75 | AF36: 83 | AG36: 60 | AH36: 77 | AI36: 80 | AJ36: 74 | AK36: 75 | AL36: 60 | AM36: 75 | AN36: 65 | AO36: 79 | AP36: 78 | AQ36: 86 | AR36: 87 | AS36: 91 | AT36: 74 | AU36: 87 | AV36: 80 | AW36: 83 | AX36: 81 | AY36: 64 | AZ36: 19 | BA36: 38.7755102
A37: 2016010174 | B37: 刘靖 | C37: 68 | D37: 78 | E37: 82 | F37: 85 | G37: 80.73 | H37: 74 | I37: 86 | J37: 82 | K37: 85 | L37: 77 | M37: 82 | N37: 74 | O37: 87 | P37: 76 | Q37: 92 | R37: 80 | S37: 81 | T37: 82 | U37: 78 | V37: 86 | W37: 81 | X37: 84 | Y37: 80 | Z37: 83 | AA37: 97 | AB37: 87 | AC37: 91 | AD37: 85 | AE37: 85 | AF37: 84 | AG37: 64 | AH37: 81 | AI37: 90 | AJ37: 93 | AK37: 85 | AL37: 84 | AM37: 94 | AN37: 79 | AO37: 86 | AP37: 83 | AQ37: 90 | AR37: 88 | AS37: 87 | AT37: 77 | AU37: 92 | AV37: 74 | AW37: 90 | AX37: 86 | AY37: 88 | AZ37: 38 | BA37: 77.55102041
A38: 2016010175 | B38: 刘子瑞 | C38: 62 | D38: 60 | E38: 81 | F38: 80 | G38: 69.3 | H38: 64 | I38: 72 | J38: 65 | K38: 46 | L38: 90 | M38: 68 | N38: 74 | O38: 80 | P38: 62 | Q38: 82 | R38: 92 | S38: 63 | T38: 86 | U38: 73 | V38: 75 | W38: 85 | X38: 81 | Y38: 60 | Z38: 61 | AA38: 73 | AB38: 85 | AC38: 60 | AD38: 82 | AE38: 75 | AF38: 83 | AG38: 60 | AH38: 72 | AI38: 83 | AJ38: 77 | AK38: 75 | AL38: 75 | AM38: 74 | AN38: 61 | AO38: 70 | AP38: 89 | AQ38: 86 | AR38: 66 | AS38: 85 | AT38: 79 | AU38: 88 | AV38: 63 | AW38: 89 | AX38: 79 | AY38: 72 | AZ38: 18 | BA38: 36.73469388
A39: 2016010176 | B39: 马海超 | C39: 61 | D39: 82 | E39: 77 | F39: 82 | G39: 76.2 | H39: 70 | I39: 78 | J39: 62 | K39: 63 | L39: 77 | M39: 66 | N39: 60 | O39: 82 | P39: 63 | Q39: 64 | R39: 81 | S39: 74 | T39: 82 | U39: 66 | V39: 65 | W39: 90 | X39: 75 | Y39: 60 | Z39: 67 | AA39: 83 | AB39: 76 | AC39: 55 | AD39: 85 | AE39: 72 | AF39: 83 | AG39: 43 | AH39: 79 | AI39: 70 | AJ39: 86 | AK39: 72 | AL39: 60 | AM39: 60 | AN39: 64 | AO39: 81 | AP39: 91 | AQ39: 92 | AR39: 83 | AS39: 89 | AT39: 64 | AU39: 88 | AV39: 63 | AW39: 70 | AX39: 85 | AY39: 83 | AZ39: 18 | BA39: 36.73469388
A40: 2016010177 | B40: 马哲宇 | C40: 57 | D40: 87 | E40: 87 | F40: 81 | G40: 77 | H40: 63 | I40: 78 | J40: 70 | K40: 60 | L40: 83 | M40: 60 | N40: 70 | O40: 80 | P40: 68 | Q40: 67 | R40: 78 | S40: 84 | T40: 84 | U40: 63 | V40: 80 | W40: 76 | X40: 74 | Y40: 72 | Z40: 60 | AA40: 84 | AB40: 82 | AC40: 72 | AD40: 86 | AE40: 76 | AF40: 86 | AG40: 60 | AH40: 81 | AI40: 86 | AJ40: 89 | AK40: 76 | AL40: 72 | AM40: 82 | AN40: 76 | AO40: 85 | AP40: 93 | AQ40: 93 | AR40: 81 | AS40: 90 | AT40: 81 | AU40: 94 | AV40: 76 | AW40: 81 | AX40: 94 | AY40: 81 | AZ40: 26 | BA40: 53.06122449
A41: 2016010178 | B41: 欧邦清 | C41: 55 | D41: 60 | E41: 80 | F41: 75 | G41: 70.4 | H41: 73 | I41: 72 | J41: 71 | K41: 62 | L41: 80 | M41: 60 | N41: 45 | O41: 81 | P41: 60 | Q41: 64 | R41: 80 | S41: 67 | T41: 83 | U41: 64 | V41: 61 | W41: 79 | X41: 84 | Y41: 62 | Z41: 68 | AA41: 78 | AB41: 76 | AC41: 74 | AD41: 81 | AE41: 70 | AF41: 86 | AG41: 60 | AH41: 81 | AI41: 71 | AJ41: 85 | AK41: 70 | AL41: 77 | AM41: 82 | AN41: 81 | AO41: 82 | AP41: 79 | AQ41: 82 | AR41: 78 | AS41: 86 | AT41: 62 | AU41: 88 | AV41: 83 | AW41: 85 | AX41: 80 | AY41: 83 | AZ41: 20 | BA41: 40.81632653
A42: 2016010179 | B42: 齐朝旭 | C42: 75 | D42: 67 | E42: 83 | F42: 86 | G42: 83.45 | H42: 78 | I42: 80 | J42: 88 | K42: 76 | L42: 86 | M42: 78 | N42: 72 | O42: 73 | P42: 62 | Q42: 70 | R42: 88 | S42: 64 | T42: 84 | U42: 72 | V42: 62 | W42: 90 | X42: 75 | Y42: 94 | Z42: 70 | AA42: 76 | AB42: 77 | AC42: 61 | AD42: 84 | AE42: 75 | AF42: 85 | AG42: 67 | AH42: 84 | AI42: 86 | AJ42: 79 | AK42: 75 | AL42: 60 | AM42: 78 | AN42: 88 | AO42: 83 | AP42: 86 | AQ42: 87 | AR42: 86 | AS42: 93 | AT42: 76 | AU42: 86 | AV42: 82 | AW42: 83 | AX42: 93 | AY42: 82 | AZ42: 25 | BA42: 51.02040816
A43: 2016010180 | B43: 撒世东 | C43: 60 | D43: 60 | E43: 87 | F43: 82 | G43: 72.9 | H43: 62 | I43: 75 | J43: 62 | K43: 56 | L43: 82 | M43: 66 | N43: 70 | O43: 86 | P43: 64 | Q43: 61 | R43: 89 | S43: 85 | T43: 79 | U43: 65 | V43: 70 | W43: 87 | X43: 80 | Y43: 65 | Z43: 67 | AA43: 73 | AB43: 78 | AC43: 68 | AD43: 82 | AE43: 80 | AF43: 83 | AG43: 60 | AH43: 78 | AI43: 75 | AJ43: 83 | AK43: 80 | AL43: 64 | AM43: 73 | AN43: 85 | AO43: 81 | AP43: 82 | AQ43: 79 | AR43: 80 | AS43: 96 | AT43: 60 | AU43: 65 | AV43: 75 | AW43: 78 | AX43: 89 | AY43: 80 | AZ43: 20 | BA43: 40.81632653
A44: 2016010181 | B44: 滕桂鹏 | C44: 52 | D44: 59 | E44: 76 | F44: 83 | G44: 72 | H44: 65 | I44: 73 | J44: 67 | K44: 60 | L44: 83 | M44: 63 | N44: 57 | O44: 78 | P44: 63 | Q44: 61 | R44: 83 | S44: 82 | T44: 82 | U44: 64 | V44: 83 | W44: 80 | X44: 75 | Y44: 60 | Z44: 65 | AA44: 74 | AB44: 72 | AC44: 69 | AD44: 79 | AE44: 72 | AF44: 83 | AG44: 66 | AH44: 81 | AI44: 78 | AJ44: 82 | AK44: 72 | AL44: 69 | AM44: 77 | AN44: 75 | AO44: 74 | AP44: 73 | AQ44: 85 | AR44: 72 | AS44: 96 | AT44: 75 | AU44: 77 | AV44: 76 | AW44: 81 | AX44: 80 | AY44: 74 | AZ44: 14 | BA44: 28.57142857
A45: 2016010183 | B45: 王嘉昕 | C45: 68 | D45: 63 | E45: 86 | F45: 83 | G45: 76.4 | H45: 61 | I45: 81 | J45: 67 | K45: 50 | L45: 84 | M45: 64 | N45: 63 | O45: 84 | P45: 78 | Q45: 71 | R45: 82 | S45: 53 | T45: 85 | U45: 70 | V45: 62 | W45: 66 | X45: 85 | Y45: 66 | Z45: 86 | AA45: 92 | AB45: 81 | AC45: 54 | AD45: 85 | AE45: 81 | AF45: 82 | AG45: 62 | AH45: 81 | AI45: 90 | AJ45: 90 | AK45: 81 | AL45: 70 | AM45: 86 | AN45: 87 | AO45: 82 | AP45: 92 | AQ45: 88 | AR45: 82 | AS45: 86 | AT45: 88 | AU45: 86 | AV45: 92 | AW45: 89 | AX45: 89 | AY45: 90 | AZ45: 31 | BA45: 63.26530612
A46: 2016010184 | B46: 王永铎 | C46: 39 | D46: 64 | E46: 76 | F46: 80 | G46: 68.73 | H46: 61 | I46: 75 | J46: 48 | K46: 45 | L46: 84 | M46: 50 | N46: 72 | O46: 82 | P46: 68 | Q46: 60 | R46: 80 | S46: 66 | T46: 84 | U46: 33 | V46: 44 | W46: 85 | X46: 72 | Y46: 60 | Z46: 57 | AA46: 73 | AB46: 74 | AC46: 54 | AD46: 86 | AE46: 75 | AF46: 79 | AG46: 50 | AH46: 72 | AI46: 74 | AJ46: 78 | AK46: 75 | AL46: 63 | AM46: 60 | AN46: 76 | AO46: 82 | AP46: 81 | AQ46: 89 | AR46: 86 | AS46: 87 | AT46: 75 | AU46: 70 | AV46: 75 | AW46: 87 | AX46: 77 | AY46: 68 | AZ46: 13 | BA46: 26.53061224
A47: 2016010185 | B47: 王玉琨 | C47: 68 | D47: 80 | E47: 78 | F47: 74 | G47: 74.2 | H47: 72 | I47: 79 | J47: 74 | K47: 71 | L47: 78 | M47: 75 | N47: 60 | O47: 80 | P47: 73 | Q47: 72 | R47: 81 | S47: 48 | T47: 86 | U47: 76 | V47: 46 | W47: 85 | X47: 80 | Y47: 60 | Z47: 60 | AA47: 73 | AB47: 81 | AC47: 36 | AD47: 86 | AE47: 75 | AF47: 83 | AG47: 42 | AH47: 77 | AI47: 71 | AJ47: 89 | AK47: 75 | AL47: 60 | AM47: 61 | AN47: 62 | AO47: 83 | AP47: 79 | AQ47: 83 | AR47: 86 | AS47: 88 | AT47: 80 | AU47: 87 | AV47: 84 | AW47: 74 | AX47: 84 | AY47: 64 | AZ47: 18 | BA47: 36.73469388
A48: 2016010186 | B48: 邢延德 | C48: 49 | D48: 59 | E48: 89 | F48: 83 | G48: 72 | H48: 64 | I48: 71 | J48: 70 | K48: 66 | L48: 77 | M48: 64 | N48: 60 | O48: 72 | P48: 64 | Q48: 80 | R48: 85 | S48: 70 | T48: 85 | U48: 66 | V48: 64 | W48: 83 | X48: 76 | Y48: 60 | Z48: 78 | AA48: 77 | AB48: 81 | AC48: 52 | AD48: 83 | AE48: 79 | AF48: 80 | AG48: 48 | AH48: 79 | AI48: 80 | AJ48: 87 | AK48: 79 | AL48: 60 | AM48: 67 | AN48: 73 | AO48: 82 | AP48: 90 | AQ48: 89 | AR48: 81 | AS48: 90 | AT48: 66 | AU48: 97 | AV48: 86 | AW48: 83 | AX48: 85 | AY48: 66 | AZ48: 20 | BA48: 40.81632653
A49: 2016010187 | B49: 徐俊 | C49: 58 | D49: 50 | E49: 87 | F49: 87 | G49: 76.9 | H49: 71 | I49: 83 | J49: 71 | K49: 49 | L49: 89 | M49: 71 | N49: 60 | O49: 80 | P49: 73 | Q49: 81 | R49: 80 | S49: 44 | T49: 87 | U49: 73 | V49: 41 | W49: 81 | X49: 81 | Y49: 74 | Z49: 75 | AA49: 76 | AB49: 81 | AC49: 39 | AD49: 86 | AE49: 81 | AF49: 84 | AG49: 49 | AH49: 80 | AI49: 83 | AJ49: 85 | AK49: 81 | AL49: 69 | AM49: 60 | AN49: 60 | AO49: 83 | AP49: 88 | AQ49: 88 | AR49: 86 | AS49: 93 | AT49: 82 | AU49: 91 | AV49: 80 | AW49: 86 | AX49: 85 | AY49: 81 | AZ49: 29 | BA49: 59.18367347
A50: 2016010189 | B50: 赵鑫洋 | C50: 72 | D50: 78 | E50: 76 | F50: 84 | G50: 81.9 | H50: 76 | I50: 82 | J50: 67 | K50: 76 | L50: 80 | M50: 79 | N50: 71 | O50: 81 | P50: 67 | Q50: 80 | R50: 77 | S50: 65 | T50: 84 | U50: 74 | V50: 64 | W50: 76 | X50: 84 | Y50: 75 | Z50: 83 | AA50: 81 | AB50: 79 | AC50: 73 | AD50: 83 | AE50: 77 | AF50: 84 | AG50: 60 | AH50: 78 | AI50: 78 | AJ50: 77 | AK50: 77 | AL50: 64 | AM50: 69 | AN50: 71 | AO50: 83 | AP50: 90 | AQ50: 88 | AR50: 94 | AS50: 92 | AT50: 67 | AU50: 93 | AV50: 80 | AW50: 83 | AX50: 88 | AY50: 81 | AZ50: 22 | BA50: 44.89795918
A51: 2015010174 | B51: 达那江·哈吉 | C51: 47 | D51: 64 | E51: 75 | F51: 82 | G51: 71.3 | H51: 72 | I51: 77 | J51: 60 | K51: 61 | L51: 72 | M51: 66 | N51: 43 | O51: 70 | P51: - | Q51: 67 | R51: 76 | S51: 86 | T51: 82 | U51: 52 | V51: 46 | W51: 75 | X51: 71 | Y51: 60 | Z51: 62 | AA51: 55 | AB51: 65 | AC51: 60 | AE51: 68 | AF51: 82 | AG51: 37 | AH51: 66 | AI51: 68 | AJ51: 72 | AK51: 68 | AL51: 67 | AM51: 60 | AN51: 65 | AO51: 66 | AP51: 72 | AQ51: 74 | AR51: 70 | AS51: 87 | AT51: 63 | AU51: 72 | AV51: 68 | AW51: 83 | AX51: 80 | AY51: 67 | AZ51: 7 | BA51: 14.28571429

Sheet 综测
A1: 学号 | B1: 姓名 | C1: 2017年综测 | D1: 2018年综测 | E1: 19年综测 | F1: 平均综测
A2: 2016010130 | B2: 段练 | C2: 95.34789404 | D2: 93.87 | E2: 108.6253333 | F2: =AVERAGE(C2:E2) -> 99.27944953
A3: 2016010131 | B3: 耿夏欣 | C3: 88.1033899 | D3: 83.83 | E3: 86.32589267 | F3: =AVERAGE(C3:E3) -> 86.08696941
A4: 2016010132 | B4: 郭超洁 | C4: 94.48175758 | D4: 98.35 | E4: 102.8854943 | F4: 98.57280765
A5: 2016010135 | B5: 解竞帆 | C5: 85.08436718 | D5: 85.83 | E5: 93.03610185 | F5: 87.98340055
A6: 2016010136 | B6: 赖雨薇 | C6: 83.32514141 | D6: 80.16 | E6: 92.11223529 | F6: 85.19833769
A7: 2016010137 | B7: 罗抒晗 | C7: 84.51828626 | D7: 81.91 | E7: 86.8831634 | F7: 84.43757413
A8: 2016010138 | B8: 麻晓梅 | C8: 89.6296714 | D8: 88.87 | E8: 97.92368627 | F8: 92.1411014
A9: 2016010139 | B9: 孙霄 | C9: 88.5694103 | D9: 88.93 | E9: 97.05381297 | F9: 91.5188017
A10: 2016010140 | B10: 王明洋 | C10: 84.05552167 | D10: 86.60 | E10: 92.47077526 | F10: 87.70960655
A11: 2016010141 | B11: 尹舒慧 | C11: 90.56117394 | D11: 85.67 | E11: 93.97876471 | F11: 90.07056065
A12: 2016010143 | B12: 丁紫鹤 | C12: 72.48868816 | D12: 73.81 | E12: 74.56277419 | F12: 73.62169957
A13: 2016010144 | B13: 李臣委 | C13: 80.97174125 | D13: 73.89 | E13: 80.34634839 | F13: 78.4042117
A14: 2016010145 | B14: 刘泽 | C14: 81.96274972 | D14: 76.55 | E14: 78.08651613 | F14: 78.86803811
A15: 2016010146 | B15: 盛梦凡 | C15: 77.87479539 | D15: 72.67 | E15: 79.80300836 | F15: 76.78229822
A16: 2016010148 | B16: 王一帆 | C16: 64.72917318 | D16: 72.17 | E16: 72.425642 | F16: 69.77584748
A17: 2016010150 | B17: 徐加霸 | C17: 81.96725574 | D17: 81.51 | E17: 82.94111111 | F17: 82.13955663
A18: 2016010151 | B18: 杨宇 | C18: 84.73091641 | D18: 80.51 | E18: 84.73862745 | F18: 83.32502977
A19: 2016010152 | B19: 余锦标 | C19: 73.38290748 | D19: 79.96 | E19: 79.1622963 | F19: 77.5008255
A20: 2016010154 | B20: 张一驰 | C20: 75.01136267 | D20: 72.77 | E20: 75.54705882 | F20: 74.44271099
A21: 2016010155 | B21: 赵启发 | C21: 77.73201883 | D21: 83.25 | E21: 80.25172549 | F21: 80.41286932
A22: 2016010156 | B22: 赵鑫 | C22: 77.07526496 | D22: 72.39 | E22: 74.31423886 | F22: 74.59331946
A23: 2016010159 | B23: 朱江 | C23: 78.60043743 | D23: 72.69 | E23: 74.78943627 | F23: 75.36132154
A24: 2016010160 | B24: 方熹鹤 | C24: 83.18114478 | D24: 86.34 | E24: 86.41669574 | F24: 85.31258228
A25: 2016010161 | B25: 李梦扬 | C25: 82.05668855 | D25: 86.20 | E25: 91.05246401 | F25: 86.43601999
A26: 2016010163 | B26: 刘改过 | C26: 87.90184343 | D26: 88.31 | E26: 92.39905436 | F26: 89.53579309
A27: 2016010164 | B27: 刘雅雯 | C27: 81.88241751 | D27: 85.50 | E27: 83.73694168 | F27: 83.7080796
A28: 2016010165 | B28: 尚青 | C28: 85.88501684 | D28: 87.56 | E28: 90.92086276 | F28: 88.12060184
A29: 2016010166 | B29: 汤明珍 | C29: 86.61647306 | D29: 86.62 | E29: 89.18361705 | F29: 87.47290658
A30: 2016010167 | B30: 涂茁炜 | C30: 82.46321212 | D30: 81.21 | E30: 84.7334416 | F30: 82.80339075
A31: 2016010168 | B31: 许家宁 | C31: 80.66073569 | D31: 81.14 | E31: 83.99848833 | F31: 81.93218869
A32: 2016010169 | B32: 张诗卿 | C32: 81.59096296 | D32: 84.49 | E32: 81.53169414 | F32: 82.53865503
A33: 2016010171 | B33: 胡啸林 | C33: 82.68814815 | D33: 78.20 | E33: 74.56434661 | F33: 78.48475257
A34: 2016010172 | B34: 李牛江杰 | C34: 81.0042963 | D34: 79.19 | E34: 78.06047144 | F34: 79.41968801
A35: 2016010173 | B35: 李志萌 | C35: 79.24839731 | D35: 79.75 | E35: 82.83756674 | F35: 80.61308678
A36: 2016010174 | B36: 刘靖 | C36: 87.72733165 | D36: 86.62 | E36: 86.05945589 | F36: 86.80090522
A37: 2016010175 | B37: 刘子瑞 | C37: 78.35024916 | D37: 80.44 | E37: 81.79019147 | F37: 80.19387527
A38: 2016010176 | B38: 马海超 | C38: 79.29010438 | D38: 81.82 | E38: 77.2115099 | F38: 79.4419041
A39: 2016010177 | B39: 马哲宇 | C39: 80.90195455 | D39: 82.89 | E39: 84.98752344 | F39: 82.92663718
A40: 2016010178 | B40: 欧邦清 | C40: 78.68859933 | D40: 74.70 | E40: 82.49902368 | F40: 78.63080026
A41: 2016010179 | B41: 齐朝旭 | C41: 85.70119192 | D41: 80.62 | E41: 86.48992034 | F41: 84.26929668
A42: 2016010180 | B42: 撒世东 | C42: 76.90001347 | D42: 79.89 | E42: 79.71716282 | F42: 78.83696
A43: 2016010181 | B43: 滕桂鹏 | C43: 79.74146128 | D43: 77.51 | E43: 82.05128884 | F43: 79.76696284
A44: 2016010183 | B44: 王嘉昕 | C44: 82.11244444 | D44: 78.19 | E44: 89.53595104 | F44: 83.27828923
A45: 2016010184 | B45: 王永铎 | C45: 75.36989899 | D45: 75.14 | E45: 72.94939401 | F45: 74.48659149
A46: 2016010185 | B46: 王玉琨 | C46: 80.96876768 | D46: 80.03 | E46: 74.92804444 | F46: 78.64194663
A47: 2016010186 | B47: 邢延德 | C47: 78.63022222 | D47: 78.12 | E47: 81.81197187 | F47: 79.52023754
A48: 2016010187 | B48: 徐俊 | C48: 82.59505724 | D48: 76.13 | E48: 80.47466556 | F48: 79.73291995
A49: 2016010189 | B49: 赵鑫洋 | C49: 83.9733064 | D49: 79.96 | E49: 81.79651938 | F49: 81.91032464
A50: 2015010174 | B50: 达那江·哈吉 | C50: 74.39654882 | D50: 70.58 | E50: 76.28571345 | F50: 73.75478812

Sheet 面试
A1: 学号 | B1: 姓名
A2: 2016010130 | B2: 段练
A3: 2016010131 | B3: 耿夏欣
A4: 2016010132 | B4: 郭超洁
A5: 2016010135 | B5: 解竞帆
A6: 2016010136 | B6: 赖雨薇
A7: 2016010137 | B7: 罗抒晗
A8: 2016010138 | B8: 麻晓梅
A9: 2016010139 | B9: 孙霄
A10: 2016010140 | B10: 王明洋
A11: 2016010141 | B11: 尹舒慧
A12: 2016010143 | B12: 丁紫鹤
A13: 2016010144 | B13: 李臣委
A14: 2016010145 | B14: 刘泽
A15: 2016010146 | B15: 盛梦凡
A16: 2016010148 | B16: 王一帆
A17: 2016010150 | B17: 徐加霸
A18: 2016010151 | B18: 杨宇
A19: 2016010152 | B19: 余锦标
A20: 2016010154 | B20: 张一驰
A21: 2016010155 | B21: 赵启发
A22: 2016010156 | B22: 赵鑫
A23: 2016010159 | B23: 朱江
A24: 2016010160 | B24: 方熹鹤
A25: 2016010161 | B25: 李梦扬
A26: 2016010163 | B26: 刘改过
A27: 2016010164 | B27: 刘雅雯
A28: 2016010165 | B28: 尚青
A29: 2016010166 | B29: 汤明珍
A30: 2016010167 | B30: 涂茁炜
A31: 2016010168 | B31: 许家宁
A32: 2016010169 | B32: 张诗卿
A33: 2016010171 | B33: 胡啸林
A34: 2016010172 | B34: 李牛江杰
A35: 2016010173 | B35: 李志萌
A36: 2016010174 | B36: 刘靖
A37: 2016010175 | B37: 刘子瑞
A38: 2016010176 | B38: 马海超
A39: 2016010177 | B39: 马哲宇
A40: 2016010178 | B40: 欧邦清
A41: 2016010179 | B41: 齐朝旭
A42: 2016010180 | B42: 撒世东
A43: 2016010181 | B43: 滕桂鹏
A44: 2016010183 | B44: 王嘉昕
A45: 2016010184 | B45: 王永铎
A46: 2016010185 | B46: 王玉琨
A47: 2016010186 | B47: 邢延德
A48: 2016010187 | B48: 徐俊
A49: 2016010189 | B49: 赵鑫洋
A50: 2015010174 | B50: 达那江·哈吉

Sheet 总成绩
A1: 学号 | B1: 姓名 | C1: 必修课成绩 | D1: 综测成绩 | E1: 面试成绩 | F1: 总成绩 | G1: 优良率(%) | H1: 排名 | I1: 挂科数 | J1: 四级成绩 | K1: 六级成绩 | L1: 有无处分
A2: 2016010132 | B2: 郭超洁 | C2: 90.30241935 | D2: 98.57280765 | F2: =SUM(C2*0.7+D2*0.2+E2) -> 82.92625508 | G2: 97.92 | H2: 1 | I2: 0 | J2: 555 | K2: 606
A3: 2016010130 | B3: 段练 | C3: 88.42007874 | D3: 99.27944953 | F3: 81.74994502 | G3: 95.92 | H3: 2 | I3: 0 | J3: 551 | K3: 464
A4: 2016010138 | B4: 麻晓梅 | C4: 86.19291339 | D4: 92.1411014 | F4: 78.76325965 | G4: 87.76 | H4: 3 | I4: 0 | J4: 511 | K4: 439
A5: 2016010139 | B5: 孙霄 | C5: 85.66535433 | D5: 91.5188017 | F5: 78.26950837 | G5: 89.80 | H5: 4 | I5: 0 | J5: 545 | K5: 530
A6: 2016010141 | B6: 尹舒慧 | C6: 85.50393701 | D6: 90.07056065 | F6: 77.86686804 | G6: 83.67 | H6: 5 | I6: 0 | J6: 505 | K6: 446
A7: 2016010163 | B7: 刘改过 | C7: 83.64212598 | D7: 89.53579309 | F7: 76.45664681 | G7: 77.55 | H7: 6 | I7: 0 | J7: 474 | K7: 390
A8: 2016010165 | B8: 尚青 | C8: 82.83937008 | D8: 88.12060184 | F8: 75.61167942 | G8: 79.59 | H8: 7 | I8: 0 | J8: 470 | K8: 364
A9: 2016010174 | B9: 刘靖 | C9: 82.80889764 | D9: 86.80090522 | F9: 75.32640939 | G9: 77.55 | H9: 8 | I9: 0 | J9: 467 | K9: 441
A10: 2016010166 | B10: 汤明珍 | C10: 81.4007874 | D10: 87.47290658 | F10: 74.4751325 | G10: 69.39 | H10: 9 | I10: 0 | J10: 460 | K10: 470
A11: 2016010140 | B11: 王明洋 | C11: 80.47637795 | D11: 87.70960655 | F11: 73.87538588 | G11: 69.39 | H11: 10 | I11: 1 | J11: 443 | K11: -
A12: 2016010131 | B12: 耿夏欣 | C12: 79.72834646 | D12: 86.08696941 | F12: 73.0272364 | G12: 69.39 | H12: 11 | I12: 0 | J12: 460 | K12: 508
A13: 2016010161 | B13: 李梦扬 | C13: 79.54724409 | D13: 86.43601999 | F13: 72.97027486 | G13: 65.31 | H13: 12 | I13: 1 | J13: 492 | K13: 375
A14: 2016010137 | B14: 罗抒晗 | C14: 78.00393701 | D14: 84.43757413 | F14: 71.49027073 | G14: 61.22 | H14: 13 | I14: 0 | J14: 570 | K14: 547
A15: 2016010135 | B15: 解竞帆 | C15: 76.71574803 | D15: 87.98340055 | F15: 71.29770373 | G15: 55.10 | H15: 14 | I15: 0 | J15: 425 | K15: 388
A16: 2016010179 | B16: 齐朝旭 | C16: 77.6019685 | D16: 84.26929668 | F16: 71.17523729 | G16: 51.02 | H16: 15 | I16: 1 | J16: 492 | K16: 382
A17: 2016010136 | B17: 赖雨薇 | C17: 77.08661417 | D17: 85.19833769 | F17: 71.00029746 | G17: 57.14 | H17: 16 | I17: 0 | J17: 458 | K17: -
A18: 2016010189 | B18: 赵鑫洋 | C18: 76.5976378 | D18: 81.91032464 | F18: 70.00041138 | G18: 44.90 | H18: 17 | I18: 0 | J18: 466 | K18: 414
A19: 2016010167 | B19: 涂茁炜 | C19: 76.07559055 | D19: 82.80339075 | F19: 69.81359153 | G19: 48.98 | H19: 18 | I19: 1 | J19: 618 | K19: 563
A20: 2016010169 | B20: 张诗卿 | C20: 75.92165354 | D20: 82.53865503 | F20: 69.65288849 | G20: 53.06 | H20: 19 | I20: 3 | J20: 440 | K20: -
A21: 2016010177 | B21: 马哲宇 | C21: 75.76377953 | D21: 82.92663718 | F21: 69.61997311 | G21: 53.06 | H21: 20 | I21: 2 | J21: 431 | K21: -
A22: 2016010183 | B22: 王嘉昕 | C22: 75.60551181 | D22: 83.27828923 | F22: 69.57951611 | G22: 63.27 | H22: 21 | I22: 3 | J22: 429 | K22: -
A23: 2016010160 | B23: 方熹鹤 | C23: 74.99133858 | D23: 85.31258228 | F23: 69.55645346 | G23: 53.06 | H23: 22 | I23: 5 | J23: 495 | K23: 442
A24: 2016010164 | B24: 刘雅雯 | C24: 75.37874016 | D24: 83.7080796 | F24: 69.50673403 | G24: 51.02 | H24: 23 | I24: 4 | J24: 496 | K24: 405
A25: 2016010151 | B25: 杨宇 | C25: 75.28740157 | D25: 83.32502977 | F25: 69.36618706 | G25: 46.94 | H25: 24 | I25: 2 | J25: 441 | K25: -
A26: 2016010168 | B26: 许家宁 | C26: 74.81496063 | D26: 81.93218869 | F26: 68.75691018 | G26: 42.86 | H26: 25 | I26: 1 | J26: 460 | K26: 444
A27: 2016010171 | B27: 胡啸林 | C27: 75.71255061 | D27: 78.48475257 | F27: 68.69573594 | G27: 34.69 | H27: 26 | I27: 1 | J27: 464 | K27: -
A28: 2016010150 | B28: 徐加霸 | C28: 74.60787402 | D28: 82.13955663 | F28: 68.65342314 | G28: 44.90 | H28: 27 | I28: 3 | J28: 449 | K28: -
A29: 2016010155 | B29: 赵启发 | C29: 73.65354331 | D29: 80.41286932 | F29: 67.64005418 | G29: 44.90 | H29: 28 | I29: 5 | J29: 361 | K29: -
A30: 2016010173 | B30: 李志萌 | C30: 72.47244094 | D30: 80.61308678 | F30: 66.85332602 | G30: 38.78 | H30: 29 | I30: 0 | J30: 370 | K30: -
A31: 2016010172 | B31: 李牛江杰 | C31: 71.97322835 | D31: 79.41968801 | F31: 66.26519744 | G31: 26.53 | H31: 30 | I31: 2 | J31: 451 | K31: -
A32: 2016010180 | B32: 撒世东 | C32: 72.05826772 | D32: 78.83696 | F32: 66.2081794 | G32: 40.82 | H32: 31 | I32: 4 | J32: 446 | K32: 346
A33: 2016010186 | B33: 邢延德 | C33: 71.53543307 | D33: 79.52023754 | F33: 65.97885066 | G33: 40.82 | H33: 32 | I33: 6 | J33: 426 | K33: -
A34: 2016010144 | B34: 李臣委 | C34: 71.73976378 | D34: 78.4042117 | F34: =SUM(C34*0.7+D34*0.2+E34) -> 65.89867698 | G34: 42.86 | H34: 33 | I34: 3 | J34: 578 | K34: 507
A35: 2016010181 | B35: 滕桂鹏 | C35: 71.33858268 | D35: 79.76696284 | F35: 65.89040044 | G35: 28.57 | H35: 34 | I35: 7 | J35: 381 | K35: -
A36: 2016010152 | B36: 余锦标 | C36: 71.97913386 | D36: 77.5008255 | F36: 65.8855588 | G36: 30.61 | H36: 35 | I36: 3 | J36: 478 | K36: -
A37: 2016010175 | B37: 刘子瑞 | C37: 71.14015748 | D37: 80.19387527 | F37: 65.83688529 | G37: 36.73 | H37: 36 | I37: 2 | J37: 475 | K37: 272
A38: 2016010187 | B38: 徐俊 | C38: 71.21968504 | D38: 79.73291995 | F38: 65.80036352 | G38: 59.18 | H38: 37 | I38: 9 | J38: 443 | K38: 374
A39: 2016010178 | B39: 欧邦清 | C39: 71.52283465 | D39: 78.63080026 | F39: 65.7921443 | G39: 40.82 | H39: 38 | I39: 4 | J39: 367 | K39: -
A40: 2016010176 | B40: 马海超 | C40: 70.6511811 | D40: 79.4419041 | F40: 65.34420759 | G40: 36.73 | H40: 39 | I40: 5 | J40: 385 | K40: -
A41: 2016010185 | B41: 王玉琨 | C41: 70.74566929 | D41: 78.64194663 | F41: 65.25035783 | G41: 36.73 | H41: 40 | I41: 4 | J41: 524 | K41: 448
A42: 2016010146 | B42: 盛梦凡 | C42: 69.52716535 | D42: 76.78229822 | F42: 64.02547539 | G42: 30.61 | H42: 41 | I42: 5 | J42: 400 | K42: -
A43: 2016010145 | B43: 刘泽 | C43: 66.97519685 | D43: 78.86803811 | F43: 62.65624542 | G43: 20.41 | H43: 42 | I43: 7 | J43: 0 | K43: -
A44: 2016010159 | B44: 朱江 | C44: 67.71653543 | D44: 75.36132154 | F44: 62.47383911 | G44: 26.53 | H44: 43 | I44: 6 | J44: 431 | K44: -
A45: 2016010154 | B45: 张一驰 | C45: 67.01574803 | D45: 74.44271099 | F45: 61.79956582 | G45: 12.24 | H45: 44 | I45: 5 | J45: 436 | K45: -
A46: 2016010143 | B46: 丁紫鹤 | C46: 67.16614173 | D46: 73.62169957 | F46: 61.74063913 | G46: 26.53 | H46: 45 | I46: 8 | J46: 439 | K46: -
A47: 2016010184 | B47: 王永铎 | C47: 66.07267717 | D47: 74.48659149 | F47: 61.14819231 | G47: 26.53 | H47: 46 | I47: 10 | J47: 303 | K47: -
A48: 2016010156 | B48: 赵鑫 | C48: 64.92913386 | D48: 74.59331946 | F48: 60.36905759 | G48: 30.61 | H48: 47 | I48: 11 | J48: 400 | K48: -
A49: 2015010174 | B49: 达那江·哈吉 | C49: 64.87741935 | D49: 73.75478812 | F49: 60.16515117 | G49: 14.29 | H49: 48 | I49: 11 | J49: 426 | K49: -
A50: 2016010148 | B50: 王一帆 | C50: 61.97637795 | D50: 69.77584748 | F50: 57.33863406 | G50: 24.49 | H50: 49 | I50: 13 | J50: 462 | K50: -
